Workbook

Sheet Contents
C3: Sheet Tab | D3: Description | E3: Author
B4: 1 | C4: Contents
B5: 2 | C5: Summary Sheet
B6: 3 | C6: Mongolia Mining Corporate Model
B7: 4 | C7: Valuation Sheet
B8: 5 | C8: Mongolia Mining Scenario
B9: 6 | C9: Tornado Diagram
B10: 7 | C10: Stock Prices
B11: 8 | C11: Cash Waterfall Chart
B12: 9 | C12: PF Modelling
B13: 10 | C13: Scenario PF Model
B14: 11 | C14: Cash Flow Analysis Corp Model
B15: 12 | C15: Cap Exp
B16: 13 | C16: Fixed and Variable Admin Cost

Sheet Summary Sheet
F4: Graph Code
B5: Downside case Coal Price | D5: ='Mongolia Mining Scenario'!F3 -> 74 | F5: 1
B6: Discretionalry Cap Exp | D6: ='Mongolia Mining Scenario'!F4 -> 0 | F6: 13
B7: Cost of Production | D7: ='Mongolia Mining Corporate Model'!H149 -> 30 | F7: 5
B8: Admin Cost to Sales | D8: ='Mongolia Mining Scenario'!H28 -> 0.16 | F8: 7
B9: Sales Volume | D9: ='Mongolia Mining Corporate Model'!H123/10 -> 4.2 | F9: 2
B12: Valuation using Terminal Growth
B14: PV of Explicit CF | D14: ='Valuation Sheet'!E30 -> 251379.1666
B15: Terminal Value Growth | D15: ='Valuation Sheet'!$E$38 -> 866613.8542
B16: Enterprise Value | D16: =SUM(D14:D15) -> 1117993.021
B17: Net Debt | D17: ='Valuation Sheet'!$E$44 -> 619854
B18: Equity Value | D18: =D16-D17 -> 498139.0208
B21: Valuation using EV/EBITDA
B23: PV of Explicit CF | D23: =D14 -> 251379.1666
B24: Terminal Value Growth | D24: ='Valuation Sheet'!$E$49 -> 480175.3228
B25: Enterprise Value | D25: =D23+D24 -> 731554.4894
B26: Net Debt | D26: =D17 -> 619854
B27: Equity Value | D27: =D25-D26 -> 111700.4894
B29: Valuation
B30: Valuation Year | D30: ='Valuation Sheet'!E4 -> 2015
B31: Terminal Year | D31: ='Valuation Sheet'!E5 -> 2020

Sheet Mongolia Mining Scenario
D1: Scenario # | F1: 2
D3: Downside Case Price | F3: ='Mongolia Mining Corporate Model'!N130 -> 74
D4: Discretionalry Cap Exp | F4: =K8 -> 0
D6: Sales Volume Code | E6: Price Code | F6: Production to sales ratio | G6: Cost of production | H6: Admin to Sales | I6: Other Inccome | J6: Maint Cap Exp | K6: Project Cap Exp | M6: Average operating cash flow | N6: Cash flow in 2016 | O6: Valuation Growth | P6: Valuation EV/EBITDA
H7: 16 | M7: =SUMIF('Mongolia Mining Corporate Model'!2:2,FALSE,'Mongolia Mining Corporate Model'!347:347) -> 413516.5307 | N7: ='Mongolia Mining Corporate Model'!P347 -> 59845.373 | O7: ='Valuation Sheet'!E45 -> 498139.0208 | P7: ='Valuation Sheet'!E53 -> 111700.4894
C8: Base | D8: 1 | E8: 1 | F8: 1.2 | G8: 28 | H8: 0.1 | I8: -20 | J8: 2000 | K8: 0 | L8: 1 | M8: 449453.1424 | N8: -4120.331813 | O8: 734098.5441 | P8: 290869.9774
C9: Downside Case | D9: 2 | E9: 2 | F9: 1.4 | G9: 30 | H9: =H7/100 -> 0.16 | I9: -100 | J9: 500 | K9: =K8 -> 0 | L9: 2 | M9: 413516.5307 | N9: 59845.373 | O9: 498139.0208 | P9: 111700.4894
C10: Upside Case | D10: 3 | E10: 3 | F10: 1.1 | G10: 22 | H10: 0.08 | I10: 0 | J10: 1000 | K10: =K8 -> 0 | L10: 3 | M10: 943324.358 | N10: 28442.84354 | O10: 2818866.591 | P10: 1732867.069
A11: 1 | C11: =TRANSPOSE(D6:K6)&C9 -> Sales Volume Code Downside Case | D11: =IF(D$30=$A11,D$9,D$8) -> 2 | E11: =IF(E$30=$A11,E$9,E$8) -> 1 | F11: 1.2 | G11: 28 | H11: 0.1 | I11: -20 | J11: 2000 | K11: 0 | L11: 4 | M11: 370163.5959 | N11: 19730.60182 | O11: 441599.9952 | P11: 77057.94179
A12: 2 | C12: Price Code Downside Case | D12: =IF(D$30=$A12,D$9,D$8) -> 1 | E12: 2 | F12: 1.2 | G12: 28 | H12: 0.1 | I12: -20 | J12: 2000 | K12: 0 | L12: 5 | M12: 668894.1443 | N12: 19282.44129 | O12: 1529701.927 | P12: 851301.8273
A13: 3 | C13: Production to sales ratio Downside Case | D13: 1 | E13: 1 | F13: 1.4 | G13: 28 | H13: 0.1 | I13: -20 | J13: 2000 | K13: 0 | L13: 6 | M13: 362400.202 | N13: -5554.330061 | O13: 397691.7967 | P13: 58983.91124
A14: 4 | C14: Cost of production Downside Case | D14: 1 | E14: 1 | F14: 1.2 | G14: 30 | H14: 0.1 | I14: -20 | J14: 2000 | K14: 0 | L14: 7 | M14: 412167.3046 | N14: -4734.902491 | O14: 589924.2237 | P14: 191490.2347
A15: 5 | C15: Admin to Sales Downside Case | D15: 1 | E15: 1 | F15: 1.2 | G15: 28 | H15: 0.16 | I15: -20 | J15: 2000 | K15: 0 | L15: 8 | M15: 400941.6068 | N15: -474.6940585 | O15: 524478.4306 | P15: 148441.7304
A16: 6 | C16: Other Inccome Downside Case | D16: 1 | E16: 1 | F16: 1.2 | G16: 28 | H16: 0.1 | I16: -100 | J16: 2000 | K16: 0 | L16: 9 | M16: 449525.5059 | N16: -4120.331813 | O16: 734098.5441 | P16: 290869.9774
A17: 7 | C17: Maint Cap Exp Downside Case | D17: 1 | E17: 1 | F17: 1.2 | G17: 28 | H17: 0.1 | I17: -20 | J17: 500 | K17: 0 | L17: 10 | M17: 456561.2407 | N17: -2620.331813 | O17: 755691.5187 | P17: 296534.9163
A18: 8 | C18: Project Cap Exp Downside Case | D18: 1 | E18: 1 | F18: 1.2 | G18: 28 | H18: 0.1 | I18: -20 | J18: 2000 | K18: 0 | L18: 11 | M18: 449453.1424 | N18: -4120.331813 | O18: 734098.5441 | P18: 290869.9774
A19: 1 | C19: =TRANSPOSE(D6:K6)&C10 -> Sales Volume Code Upside Case | D19: =IF(D$30=$A19,D$10,D$8) -> 3 | E19: =IF(E$30=$A19,E$10,E$8) -> 1 | F19: 1.2 | G19: 28 | H19: 0.1 | I19: -20 | J19: 2000 | K19: =$K$8 -> 0 | L19: 12 | M19: 535304.7516 | N19: 29446.51683 | O19: 1050569.193 | P19: 481386.1734
A20: 2 | C20: Price Code Upside Case | D20: =IF(D$30=$A20,D$10,D$8) -> 1 | E20: 3 | F20: 1.2 | G20: 28 | H20: 0.1 | I20: -20 | J20: 2000 | K20: =$K$8 -> 0 | L20: 13 | M20: 657366.7477 | N20: 6534.556327 | O20: 1606390.407 | P20: 894394.3745
A21: 3 | C21: Production to sales ratio Upside Case | D21: 1 | E21: 1 | F21: 1.1 | G21: 28 | H21: 0.1 | I21: -20 | J21: 2000 | K21: 0 | L21: 14 | M21: 490276.4993 | N21: -3403.332688 | O21: 902301.9178 | P21: 406813.0104
A22: 4 | C22: Cost of production Upside Case | D22: 1 | E22: 1 | F22: 1.2 | G22: 22 | H22: 0.1 | I22: -20 | J22: 2000 | K22: 0 | L22: 15 | M22: 552362.2363 | N22: -3982.533472 | O22: 1166621.505 | P22: 589009.2052
A23: 5 | C23: Admin to Sales Upside Case | D23: 1 | E23: 1 | F23: 1.2 | G23: 28 | H23: 0.08 | I23: -20 | J23: 2000 | K23: 0 | L23: 16 | M23: 464679.2626 | N23: -5335.544397 | O23: 803971.9152 | P23: 338346.0597
A24: 6 | C24: Other Inccome Upside Case | D24: 1 | E24: 1 | F24: 1.2 | G24: 28 | H24: 0.1 | I24: 0 | J24: 2000 | K24: 0 | L24: 17 | M24: 449435.0515 | N24: -4120.331813 | O24: 734098.5441 | P24: 290869.9774
A25: 7 | C25: Maint Cap Exp Upside Case | D25: 1 | E25: 1 | F25: 1.2 | G25: 28 | H25: 0.1 | I25: -20 | J25: 1000 | K25: 0 | L25: 18 | M25: 454191.8746 | N25: -3120.331813 | O25: 748493.8605 | P25: 294646.6033
A26: 8 | C26: Project Cap Exp Upside Case | D26: 1 | E26: 1 | F26: 1.2 | G26: 28 | H26: 0.1 | I26: -20 | J26: 2000 | K26: 0 | L26: 19 | M26: 449453.1424 | N26: -4120.331813 | O26: 734098.5441 | P26: 290869.9774
C28: =INDEX(C8:C26,$F$1) -> Downside Case | D28: =INDEX(D8:D26,$F$1) -> 2 | E28: =INDEX(E8:E26,$F$1) -> 2 | F28: 1.4 | G28: 30 | H28: 0.16 | I28: -100 | J28: 500 | K28: 0
D30: 1 | E30: 2 | F30: 3 | G30: 4 | H30: 5 | I30: 6 | J30: 7 | K30: 8
D32: Upside vs. Base | E32: Downside vs. Base
C33: =TRANSPOSE(D6:K6) -> Sales Volume Code | D33: =O19-$O$8 -> 316470.6489 | E33: =O11-$O$8 -> -292498.5488
C34: Price Code | D34: =O20-$O$8 -> 872291.8633 | E34: =O12-$O$8 -> 795603.3828
C35: Production to sales ratio | D35: 168203.3737 | E35: -336406.7474
C36: Cost of production | D36: 432522.9609 | E36: -144174.3203
C37: Admin to Sales | D37: 69873.37116 | E37: -209620.1135
C38: Other Inccome | D38: 0 | E38: 0
C39: Maint Cap Exp | D39: 14395.31642 | E39: 21592.97463
C40: Project Cap Exp
C48: Downside Case Price | D48: ='Mongolia Mining Corporate Model'!$O$130 -> 74

Sheet Mongolia Mining Corporate Model
I1: 2009 | J1: 2010 | K1: 2011 | L1: 2012 | M1: 2013 | N1: 2014 | O1: 2015 | P1: 2016 | Q1: 2017 | R1: 2018 | S1: 2019 | T1: 2020
D2: Last historic year | H2: 2015 | I2: =I1<=$H$2 -> TRUE | J2: TRUE | K2: TRUE | L2: TRUE | M2: TRUE | N2: TRUE | O2: TRUE | P2: FALSE | Q2: FALSE | R2: FALSE | S2: FALSE | T2: FALSE
D3: Forecast period | H3: 2018 | I3: =AND(I1>$H$3,I1<=$H$3) -> FALSE | J3: FALSE | K3: FALSE | L3: FALSE | M3: FALSE | N3: FALSE | O3: FALSE | P3: FALSE | Q3: FALSE | R3: FALSE | S3: FALSE | T3: FALSE
A5: Actual Financial Data
C6: Production and Sales
E7: Production volume (million tonnes (“Mt”)) | I7: 1.84 | J7: 3.93 | K7: 7.1 | L7: 9.4 | M7: 9.7 | N7: 3.387 | O7: 2.737
E8: Sales volume | I8: 1.39 | J8: 3.92 | K8: 4.8 | L8: 5.6 | M8: 5.7 | N8: 5.4 | O8: 1.5
C10: Profit and Loss
E11: Revenue | I11: 66982.70312 | J11: 277501.5938 | K11: 542568 | L11: 474480 | M11: 437339 | N11: 328307 | O11: 99485
E12: Cost of revenue | I12: -38682.32812 | J12: -164368.0469 | K12: -336368 | L12: -420400 | M12: -361485 | N12: -335510 | O12: -165604
E13: Gross profit | I13: 28300.37891 | J13: 113133.5547 | K13: 206200 | L13: 54080 | M13: 75854 | N13: -7203 | O13: -66119
E14: Other revenue | I14: 70.0019989 | J14: 511.5130005 | K14: 435 | L14: 1121 | M14: 592 | N14: 3319 | O14: 848
E15: Other net income | I15: -34.81299973 | J15: -187.022995 | K15: 76 | L15: 5418 | M15: 7073 | N15: 34171 | O15: -1082
E16: Administrative expenses | I16: -10427.09277 | J16: -38685.20703 | K16: -60303 | L16: -48183 | M16: -52410 | N16: -30916 | O16: -30520
E17: General and administrative expenses | I17: 0 | J17: 0 | K17: 0 | L17: 0 | M17: 0 | N17: -56445 | O17: -8589
E18: Impairment loss | I18: 0 | J18: 0 | K18: 0 | L18: 0 | M18: 0 | N18: -190000 | O18: 0
E19: Profit from operations | I19: 17908.47461 | J19: 74772.83594 | K19: 146408 | L19: 12436 | M19: 31109 | N19: -247074 | O19: -105462
E20: Finance income | I20: 342.3179932 | J20: 12335.08984 | K20: 22236 | L20: 39561 | M20: 9551 | N20: 3911 | O20: 5084
E21: Finance costs | I21: -3860.204102 | J21: -4214.161133 | K21: -13785 | L21: -50994 | M21: -95095 | N21: -98431 | O21: -104106
E22: Net finance costs | I22: -3517.885986 | J22: 8120.929199 | K22: 8451 | L22: -11433 | M22: -85544 | N22: =N20+N21 -> -94520 | O22: =O20+O21 -> -99022
E23: Share of losses less profits of associates | I23: -9.701999664 | J23: 1.761000037 | K23: -119 | L23: -362 | M23: -1087 | N23: -19 | O23: -15
E24: Share of profits of joint venture | I24: 0 | J24: 0 | K24: 0 | L24: 0 | M24: 0 | N24: -70 | O24: -87
E25: (Loss)/profit before taxation 6 | I25: 14380.88672 | J25: 82895.52344 | K25: 154740 | L25: 641 | M25: -55522 | N25: -341683 | O25: -204586
E26: Income tax | I26: -4110.723145 | J26: -22756.82031 | K26: -35650 | L26: -3183 | M26: -2551 | N26: 58978 | O26: 16873
E27: Loss for the year | I27: 10270.16406 | J27: 60138.70312 | K27: 119090 | L27: -2542 | M27: -58073 | N27: -282705 | O27: -187713
E28: Exchange differences on re-translation | I28: 30.59 | J28: 7601.079 | K28: -79153 | L28: -20929 | M28: -137693 | N28: -69743
E29: Total comprehensive income for the year | I29: 10300.754 | J29: 67739.783 | K29: 39937 | L29: -23471 | M29: -195766
E30: Loss attributable to the equity shareholders of | I30: 10270.164 | J30: 60138.704 | K30: 119090 | L30: -2542 | M30: -58073 | N30: -97748
E31: Basic loss per share 8 cents cents | I31: 0.34 | J31: 1.91 | K31: 3.21 | L31: -0.07 | M31: -1.57 | N31: -0.76
E32: Implied Shares | I32: =I30/I31 -> 30206.36471 | J32: 31486.23246 | K32: 37099.68847 | L32: 36314.28571 | M32: 36989.17197 | N32: 128615.7895
C34: Balance Sheet
D35: Assets
E36: Non-current assets
E37: Property, plant and equipment, net 11 | I37: 30357.991 | J37: 76646 | K37: 347109 | L37: 527358 | M37: 574467 | N37: 594926 | O37: 540714
E38: Construction in progress 12 | I38: 43985.016 | J38: 232784 | K38: 183229 | L38: 242838 | M38: 148371 | N38: 58421 | O38: 55164
E39: Lease prepayments | I39: 104.816 | J39: 118 | K39: 105 | L39: 103 | M39: 85 | N39: 73 | O39: 68
E40: Intangible assets 13 | I40: 14.521 | J40: 0 | K40: 681352 | L40: 774773 | M40: 696354 | N40: 511089 | O40: 510380
E41: Interest in associates | J41: 19 | K41: 4278 | L41: 3808 | M41: 2203 | N41: 63 | O41: 45
E42: Interest in joint venture | N42: 15 | O42: 95
E43: Other financial assets | N43: 0 | O43: 0
E44: Other non-current assets 14 | I44: 8371.548 | J44: 26889 | K44: 7423 | L44: 26727 | M44: 6590 | N44: 25823 | O44: 50582
E45: Deferred tax assets | I45: 328.038 | J45: 1681 | K45: 9698 | L45: 19144 | M45: 21781 | N45: 37968 | O45: 46629
E46: Total non-current assets | I46: 83161.93 | J46: 338137 | K46: 1233194 | L46: 1594751 | M46: 1449851 | N46: 1228378 | O46: 1203677
E47: Current assets | I47: 0
E48: Assets held for sale 15 | L48: 0 | M48: 56906 | N48: 484 | O48: 55
E49: Inventories 16 | I49: 7661.009 | J49: 7876 | K49: 57734 | L49: 90290 | M49: 106461 | N49: 48900 | O49: 45829
E50: Trade and other receivables 17 | I50: 20036.053 | J50: 32350 | K50: 109322 | L50: 207914 | M50: 209117 | N50: 152207 | O50: 93857
E51: Cash at bank and in hand 18 | H51: 1 | I51: 2371.03 | J51: 674907 | K51: 227765 | L51: 284322 | M51: 76535 | N51: 252856 | O51: 50702
E52: Total current assets | I52: 30068.092 | J52: 715133 | K52: 394821 | L52: 582526 | M52: 449019 | N52: 454447 | O52: 190443
E53: Total Assets | I53: =I52+I46 -> 113230.022 | J53: 1053270 | K53: 1628015 | L53: 2177277 | M53: 1898870 | N53: 0 | O53: 0
E55: Current liabilities | I55: 0 | N55: 0 | O55: 0
E56: Short-term borrowings and current portion of long-term | H56: -1 | I56: 24200 | J56: 85909 | K56: 333568 | L56: 81818 | M56: 141818 | N56: 114818 | O56: 197631
E57: Trade and other payables 20 | I57: 17106.673 | J57: 40315 | K57: 118680 | L57: 247057 | M57: 287951 | N57: 298118 | O57: 213429
E58: Current taxation | I58: 794.999 | J58: 5455 | K58: 17508 | L58: 3950 | M58: 3426 | N58: 68 | O58: 144
E59: Convertible Bond | H59: -1 | J59: 0 | K59: 83508 | L59: 85000 | M59: 0 | N59: 0 | O59: 0
E60: Obligations under finance leases | H60: -1 | J60: 0 | K60: 247 | L60: 210 | M60: 81 | N60: 8 | O60: 0
E61: Total current liabilities | I61: 42101.672 | J61: 131679 | K61: 553511 | L61: 418035 | M61: 433276 | N61: 413012 | O61: 411204
E62: Net current (liabilities)/assets | I62: -12033.58 | J62: 583454 | K62: -158690 | L62: 164491 | M62: 15743 | N62: 41435 | O62: -220761
E63: Total assets less current liabilities | I63: 71128.35 | J63: 921591 | K63: 1074504 | L63: 1759242 | M63: 1465594 | N63: 1269813 | O63: 982916
E64: Long-term borrowings, less current portion 19 | H64: -1 | I64: 0 | L64: 249113 | M64: 150089 | N64: 161978 | O64: 0
E65: Senior notes 21 | H65: -1 | I65: 10000 | J65: 165214 | K65: 144661 | L65: 592891 | M65: 594329 | N65: 595906 | O65: 597634
E66: Provisions 23 | I66: 15214.753 | J66: 16811 | K66: 0 | L66: 15538 | M66: 10118 | N66: 12995 | O66: 13567
E67: Deferred tax liabilities | I67: 1704.998 | J67: 6904 | K67: 11110 | L67: 149574 | M67: 149627 | N67: 101640 | O67: 102483
E68: Obligations under finance leases | H68: -1 | I68: 367.231 | J68: 5381 | K68: 149656 | L68: 113 | M68: 9 | N68: 0 | O68: 0
E69: Other non-current liabilities | J69: 0 | K69: 213 | L69: 0 | M69: 455 | N69: 456 | O69: 79441
E70: Total non-current liabilities | I70: 27286.982 | J70: 194310 | K70: 305640 | L70: 1007229 | M70: 904627 | N70: 872975 | O70: 793125
E71: NET ASSETS | I71: 43841.368 | J71: 727281 | K71: 768864 | L71: 752013 | M71: 560967 | N71: 396838 | O71: 189791
E72: CAPITAL AND RESERVES | I72: 0 | N72: 92626 | O72: 92626
E73: Share capital 24 | I73: 0 | J73: 37050 | K73: 37050 | L73: 37050 | M73: 37050 | N73: 396546 | O73: 189449
E74: Reserves 24 | I74: 43841.368 | J74: 690231 | K74: 731814 | L74: 714963 | M74: 523917 | N74: 303920 | O74: 96823
E75: TOTAL EQUITY | I75: 43841.368 | J75: 727281 | K75: 768864 | L75: 752013 | M75: 560967 | N75: 396838 | O75: 189791
C77: Cash Flow Statement
E78: Cash flows from operating activities
E79: (Loss)/profit before taxation | I79: 14380.887 | J79: 82896 | K79: 154740 | L79: 641 | M79: -55522 | N79: -341683 | O79: -204586
E80: Adjustments for: | I80: 0 | N80: 0 | O80: 0
E81: Depreciation and amortisation 6(c) | I81: 1864.804 | J81: 3204 | K81: 19370 | L81: 47619 | M81: 65132 | N81: 46145 | O81: 39179
E82: Impairment loss on trade and other receivables 6(c) | J82: 0 | K82: 4145 | L82: 5929 | M82: 17220 | N82: 8806 | O82: 8512
E83: Share of losses of associates | I83: 9.702 | J83: -2 | K83: 119 | L83: 362 | M83: 1087 | N83: 89 | O83: 102
E84: Loss on disposal of an associate | I84: 34.813 | J84: 187 | K84: 438 | L84: 133 | M84: 0 | N84: -36881 | O84: -62
E85: and equipment and construction in progress 6(c) | L85: 900 | M85: -7270 | N85: 0 | O85: 0
E86: Net finance costs 6(a) | I86: 194.487 | J86: -8280 | K86: -8451 | L86: 11433 | M86: 85544 | N86: 94520 | O86: 99022
E87: Equity-settled share-based payment expenses 6(b) | J87: 0 | K87: 4299 | L87: 6620 | M87: 4720 | N87: 3475 | O87: 3298
J88: 0 | K88: 1646 | N88: 2014 | O88: 2015
E89: Changes in working capital: | I89: 0 | N89: 0 | O89: 0
E90: Increase in inventories | I90: -7645.819 | J90: -215 | K90: -55879 | L90: -31019 | M90: -33075 | N90: 42061 | O90: -7562
E91: Increase in trade and other receivables | I91: -6996.595 | J91: -8092 | K91: -88441 | L91: -96444 | M91: -10559 | N91: 0 | O91: 0
E92: Increase in trade and other payables | I92: -4561.137 | J92: 15088 | K92: 14997 | L92: 13630 | M92: 97698 | N92: -23865 | O92: 50270
E93: Increase in other non-current liabilities | L93: 0 | M93: 455 | N93: 0 | O93: 0
E94: Cash generated from/(used in) operations | I94: -2718.858 | J94: 84786 | K94: 46983 | L94: -40196 | M94: 165430 | N94: 41348 | O94: -13780
E95: Income tax paid 27(a) | I95: -1305.024 | J95: -15145 | K95: -25998 | L95: -21527 | M95: -4719 | N95: -175 | O95: -404
E96: Net cash generated from/(used in) operating activities | I96: -4023.882 | J96: 69641 | K96: 20985 | L96: -61723 | M96: 160711 | N96: 0 | O96: 0
E97: Investing activities | I97: 0 | N97: 0 | O97: 0
E98: Payments for acquisition of property, plant | I98: 0 | N98: 2014 | O98: 2015
E99: and equipment and construction in progress | I99: -58562.528 | J99: -220242 | K99: -292294 | L99: -284432 | M99: -183465 | N99: 92664 | O99: 884
E100: Proceeds from disposal of property, plant and equipment | I100: 459.682 | J100: 213 | K100: 3069 | N100: 92664 | O100: 884
E101: Payment for acquisition of subsidiaries, net | I101: -2300.789 | J101: 0 | K101: -103494 | N101: -107 | O101: -84
E102: Payment for acquisition of associates | J102: 0 | K102: -4820 | N102: 0 | O102: 0
E103: Withdrawal/(placement) of time deposits | I103: -2000 | J103: -344645 | K103: 159886 | L103: -53241 | M103: 190000 | N103: 0 | O103: 0
E104: Interest received | I104: 342.318 | J104: 294 | K104: 22236 | L104: 17251 | M104: 14424 | N104: 0 | O104: 0
E105: Net cash generated from/(used in) investing activities | I105: -62061.317 | J105: -564380 | K105: -215417 | L105: -320422 | M105: 20959 | N105: 25782 | O105: -36236
E106: Financing activities | I106: 0 | N106: 0 | O106: 0
E107: Proceeds from issue of senior notes | I107: 18750 | L107: 589679 | M107: 0 | N107: 0 | O107: 0
E108: Proceeds from borrowings | I108: 53330.597 | L108: 194246 | M108: 60000 | N108: 146200 | O108: 15000
E109: Repayment of borrowings | I109: 14668.39 | L109: -344818 | M109: -186818 | N109: -163818 | O109: -96818
E110: Interest paid | I110: -22130.597 | L110: -50398 | M110: -72478 | N110: -68471 | O110: -69891
E111: Payment of transaction costs on issue of senior notes | I111: -1934.686 | L111: -2999 | M111: 0 | N111: 0 | O111: 0
E112: Net cash (used in)/generated from financing activities | I112: 0 | L112: 385710 | M112: -199296 | N112: 109524 | O112: -151709
E113: Net (decrease)/increase in cash and cash equivalents | I113: 0 | L113: 3565 | M113: -17626 | N113: 176479 | O113: -202129
E114: Cash and cash equivalents at beginning of the year | I114: 62683.704 | L114: 41006 | M114: 44322 | N114: 26535 | O114: 202856
E115: Effect of foreign exchange rate changes | I115: -3401.495 | L115: -249 | M115: -161 | N115: -158 | O115: -25
E116: Cash and cash equivalents at end of the year 24 | I116: 3790.797 | L116: 44322 | M116: 26535 | N116: 202856 | O116: 702
A118: Assumptions
C119: Revenue Assumptions
D120: Sales volumes
E121: historic volumes | I121: =I8 -> 1.39 | J121: 3.92 | K121: 4.8 | L121: 5.6 | M121: 5.7 | N121: 5.4 | O121: 1.5 | P121: 0 | Q121: 0 | R121: 0 | S121: 0 | T121: 0
C122: 1 | E122: Base case sales volumes | N122: =N121 -> 5.4 | O122: =O121 -> 1.5 | P122: 3.5 | Q122: 4.5 | R122: 6 | S122: 6 | T122: 6
C123: 2 | E123: Low sales case | H123: 42 | N123: =N121 -> 5.4 | O123: =O121 -> 1.5 | P123: =H123/10 -> 4.2 | Q123: =P123*1.02 -> 4.284 | R123: =Q123*1.02 -> 4.36968 | S123: =R123*1.02 -> 4.4570736 | T123: =S123*1.02 -> 4.546215072
C124: 3 | E124: Increasing sales case | N124: =N121 -> 5.4 | O124: =O121 -> 1.5 | P124: 4.5 | Q124: 5.5 | R124: 6.5 | S124: =R124*1.05 -> 6.825 | T124: 7.16625
E125: =INDEX(E122:E124,$H$125) -> Low sales case | H125: ='Mongolia Mining Scenario'!D28 -> 2 | I125: =IF(I2,I121,INDEX(I122:I124,$H$125)) -> 1.39 | J125: 3.92 | K125: 4.8 | L125: 5.6 | M125: 5.7 | N125: 5.4 | O125: 1.5 | P125: 4.2 | Q125: 4.284 | R125: 4.36968 | S125: 4.4570736 | T125: 4.546215072
D127: Price
E128: Historic Price | I128: =IF(I8,I11/I8/1000) -> 48.18899505 | J128: 70.7912229 | K128: 113.035 | L128: 84.72857143 | M128: 76.72614035 | N128: 60.79759259 | O128: 66.32333333 | P128: FALSE | Q128: FALSE | R128: FALSE | S128: FALSE | T128: FALSE
C129: 1 | E129: Base price case | N129: 65 | O129: 60 | P129: 60 | Q129: 60 | R129: 60 | S129: 60 | T129: 60
C130: 2 | E130: Low price case | N130: 74 | O130: =N130 -> 74 | P130: 74 | Q130: 74 | R130: 74 | S130: 74 | T130: 74
C131: 3 | E131: High price case | N131: 65 | O131: 65 | P131: 65 | Q131: 70 | R131: 76 | S131: 76 | T131: 76
E133: =INDEX(E129:E131,$H$133) -> Low price case | H133: ='Mongolia Mining Scenario'!E28 -> 2 | I133: =IF(I2,I128,(INDEX(I129:I131,$H$133))) -> 48.18899505 | J133: 70.7912229 | K133: 113.035 | L133: 84.72857143 | M133: 76.72614035 | N133: 60.79759259 | O133: =IF(O2,O128,(INDEX(O129:O131,$H$133))) -> 66.32333333 | P133: 74 | Q133: 74 | R133: 74 | S133: 74 | T133: 74
C135: Operating Cost Assumptions
D136: Cost of sales
E137: Step 1: Compute Cash Cost of Sales
E138: Historic cost of sales | I138: =-I12 -> 38682.32812 | J138: 164368.0469 | K138: 336368 | L138: 420400 | M138: 361485 | N138: 335510 | O138: 165604 | P138: 0 | Q138: 0 | R138: 0 | S138: 0 | T138: 0
E139: Less Depreciation Expense | I139: =I81 -> 1864.804 | J139: 3204 | K139: 19370 | L139: 47619 | M139: 65132 | N139: =N81 -> 46145 | O139: 39179 | P139: 0 | Q139: 0 | R139: 0 | S139: 0 | T139: 0
E140: Cash cost of sales | I140: =I138-I139 -> 36817.52412 | J140: =J138-J139 -> 161164.0469 | K140: 316998 | L140: 372781 | M140: 296353 | N140: 289365 | O140: 126425 | P140: 0 | Q140: 0 | R140: 0 | S140: 0 | T140: 0
D142: Production | I142: =I7 -> 1.84 | J142: 3.93 | K142: 7.1 | L142: 9.4 | M142: 9.7 | N142: 3.387 | O142: 2.737 | P142: 0 | Q142: 0 | R142: 0 | S142: 0 | T142: 0
E143: Production/sale(historic) | I143: =IF(I8,I142/I8) -> 1.323741007 | J143: 1.00255102 | K143: 1.479166667 | L143: 1.678571429 | M143: 1.701754386 | N143: 0.6272222222 | O143: 1.824666667 | P143: FALSE | Q143: FALSE | R143: FALSE | S143: FALSE | T143: FALSE
E144: Production to sales forecast | H144: ='Mongolia Mining Scenario'!F28 -> 1.4 | I144: =IF(NOT(I2),$H$144) -> FALSE | J144: FALSE | K144: FALSE | L144: FALSE | M144: FALSE | N144: FALSE | O144: FALSE | P144: 1.4 | Q144: 1.4 | R144: 1.4 | S144: 1.4 | T144: 1.4
E145: Production | I145: =IF(I2,I7,I144*I125) -> 1.84 | J145: 3.93 | K145: 7.1 | L145: 9.4 | M145: 9.7 | N145: 3.387 | O145: 2.737 | P145: 5.88 | Q145: 5.9976 | R145: 6.117552 | S145: 6.23990304 | T145: 6.364701101
D147: Cost of Production
E148: Historic Cost | I148: =IF(I142,I140/I142/1000) -> 20.00952398 | J148: =IF(J142,J140/J142/1000) -> 41.00866333 | K148: 44.64760563 | L148: 39.65755319 | M148: 30.55185567 | N148: 85.4340124 | O148: 46.19108513 | P148: FALSE | Q148: FALSE | R148: FALSE | S148: FALSE | T148: FALSE
E149: Cost of production forecast | H149: ='Mongolia Mining Scenario'!G28 -> 30 | I149: =IF(NOT(I2),$H$149) -> FALSE | J149: FALSE | K149: FALSE | L149: FALSE | M149: FALSE | N149: FALSE | O149: FALSE | P149: 30 | Q149: 30 | R149: 30 | S149: 30 | T149: 30
E150: Cost of Production | I150: =IF(I2,I148,I149) -> 20.00952398 | J150: 41.00866333 | K150: 44.64760563 | L150: 39.65755319 | M150: 30.55185567 | N150: 85.4340124 | O150: 46.19108513 | P150: 30 | Q150: 30 | R150: 30 | S150: 30 | T150: 30
D152: Admin and General Expense
E153: Historic | I153: =-(I16+I17) -> 10427.09277 | J153: =-(J16+J17) -> 38685.20703 | K153: 60303 | L153: 48183 | M153: 52410 | N153: 87361 | O153: 39109 | P153: 0 | Q153: 0 | R153: 0 | S153: 0 | T153: 0
E154: Percent of Sales | I154: =IF(I2,I153/I11) -> 0.1556684381 | J154: 0.1394053508 | K154: 0.1111436723 | L154: 0.1015490642 | M154: 0.1198383862 | N154: 0.2660954533 | O154: 0.3931145399 | P154: FALSE | Q154: FALSE | R154: FALSE | S154: FALSE | T154: FALSE
E155: Admin Percent Forecast | H155: ='Mongolia Mining Scenario'!H28 -> 0.16 | I155: =IF(NOT(I2),$H$155) -> FALSE | J155: FALSE | K155: FALSE | L155: FALSE | M155: FALSE | N155: FALSE | O155: FALSE | P155: 0.16 | Q155: 0.16 | R155: 0.16 | S155: 0.16 | T155: 0.16
E156: Admin Percent History and Forecast | I156: =IF(I2,I154,I155) -> 0.1556684381 | J156: 0.1394053508 | K156: 0.1111436723 | L156: 0.1015490642 | M156: 0.1198383862 | N156: 0.2660954533 | O156: 0.3931145399 | P156: 0.16 | Q156: 0.16 | R156: 0.16 | S156: 0.16 | T156: 0.16
D158: Other Revenues
E159: Historic | I159: =IF(I2,I14+I15) -> 35.18899918 | J159: =IF(J2,J14+J15) -> 324.4900055 | K159: 511 | L159: 6539 | M159: 7665 | N159: 37490 | O159: -234 | P159: FALSE | Q159: FALSE | R159: FALSE | S159: FALSE | T159: FALSE
E160: Forecast | H160: 20 | I160: =$H$160*NOT(I2) -> 0 | J160: =$H$160*NOT(J2) -> 0 | K160: 0 | L160: 0 | M160: 0 | N160: 0 | O160: 0 | P160: 20 | Q160: 20 | R160: 20 | S160: 20 | T160: 20
E161: Other Revenues History and Forecast | I161: =I159+I160 -> 35.18899918 | J161: =J159+J160 -> 324.4900055 | K161: 511 | L161: 6539 | M161: 7665 | N161: 37490 | O161: -234 | P161: 20 | Q161: 20 | R161: 20 | S161: 20 | T161: 20
D163: Other Income
E164: Historic | I164: =I23+I24 -> -9.701999664 | J164: 1.761000037 | K164: -119 | L164: -362 | M164: -1087 | N164: -89 | O164: -102 | P164: 0 | Q164: 0 | R164: 0 | S164: 0 | T164: 0
E165: Forecast | H165: ='Mongolia Mining Scenario'!I28 -> -100 | I165: =IF(NOT(I2),$H$165) -> FALSE | J165: FALSE | K165: FALSE | L165: FALSE | M165: FALSE | N165: FALSE | O165: FALSE | P165: -100 | Q165: -100 | R165: -100 | S165: -100 | T165: -100
E166: Other Income Applied | I166: =IF(I2,I164,I165) -> -9.701999664 | J166: 1.761000037 | K166: -119 | L166: -362 | M166: -1087 | N166: -89 | O166: -102 | P166: -100 | Q166: -100 | R166: -100 | S166: -100 | T166: -100
D168: Maintenance Captial Expenditures
E169: Historic | I169: =-I99 -> 58562.528 | J169: 220242 | K169: 292294 | L169: 284432 | M169: 183465 | N169: -92664 | O169: -884 | P169: 0 | Q169: 0 | R169: 0 | S169: 0 | T169: 0
E170: High Maintenance Expenditures | H170: ='Mongolia Mining Scenario'!J28 -> 500 | I170: =IF(I2,,$H$170) -> 0 | J170: 0 | K170: 0 | L170: 0 | M170: 0 | N170: 0 | O170: 0 | P170: 500 | Q170: 500 | R170: 500 | S170: 500 | T170: 500
D172: Capital Expenditures for New Projects
E173: Historic Capital Expenditures | I173: =I169 -> 58562.528 | J173: =J169 -> 220242 | K173: 292294 | L173: 284432 | M173: 183465 | N173: -92664 | O173: -884 | P173: 0 | Q173: 0 | R173: 0 | S173: 0 | T173: 0
E174: Projected Capital Expenditures | H174: ='Mongolia Mining Scenario'!K28 -> 0 | I174: =IF(NOT(I2),$H$174) -> FALSE | J174: FALSE | K174: FALSE | L174: FALSE | M174: FALSE | N174: FALSE | O174: FALSE | P174: 0 | Q174: 0 | R174: 0 | S174: 0 | T174: 0
E175: Applied Capital Expenditures | I175: =IF(I2,I173,I174) -> 58562.528 | J175: 220242 | K175: 292294 | L175: 284432 | M175: 183465 | N175: -92664 | O175: -884 | P175: 0 | Q175: 0 | R175: 0 | S175: 0 | T175: 0
C177: Working Capital
D178: Receivables | H178: Avg 1/Last 2 | I178: =I50 -> 20036.053 | J178: 32350 | K178: 109322 | L178: 207914 | M178: 209117 | N178: 152207 | O178: 93857 | P178: 0 | Q178: 0 | R178: 0 | S178: 0 | T178: 0
D179: Percent of Revenue | H179: 2 | I179: =IF(I$2,I178/I11,CHOOSE($H179,H179,AVERAGEIF($2:$2,TRUE,179:179))) -> 0.2991227894 | J179: 0.1165759071 | K179: 0.2014899515 | L179: 0.4381933907 | M179: 0.4781576763 | N179: 0.4636118024 | O179: 0.9434286576 | P179: 0.4200828821 | Q179: 0.4200828821 | R179: 0.4200828821 | S179: 0.4200828821 | T179: 0.4200828821
D181: Inventories | H181: Avg 1/Last 2 | I181: =I49 -> 7661.009 | J181: 7876 | K181: 57734 | L181: 90290 | M181: 106461 | N181: 48900 | O181: 45829 | P181: 0 | Q181: 0 | R181: 0 | S181: 0 | T181: 0
D182: Percent of CGS | H182: 1 | I182: =IF(I$2,I181/I140,CHOOSE($H182,H182,AVERAGEIF($2:$2,TRUE,182:182))) -> 0.2080805047 | J182: 0.04886946036 | K182: 0.182127332 | L182: 0.2422065502 | M182: 0.359237126 | N182: 0.1689907211 | O182: 0.3624995056 | P182: 0.3624995056 | Q182: 0.3624995056 | R182: 0.3624995056 | S182: 0.3624995056 | T182: 0.3624995056
D184: Other Current Assets | H184: 55 | I184: =IF(I2,I48,$H$184) -> 0 | J184: 0 | K184: 0 | L184: 0 | M184: 56906 | N184: 484 | O184: 55 | P184: 55 | Q184: 55 | R184: 55 | S184: 55 | T184: 55
E186: Trade Payables | I186: =I57 -> 17106.673 | J186: 40315 | K186: 118680 | L186: 247057 | M186: 287951 | N186: 298118 | O186: 213429 | P186: 0 | Q186: 0 | R186: 0 | S186: 0 | T186: 0
E187: Total Expenses | H187: Avg 1/Last 2 | I187: =I140+I153 -> 47244.6169 | J187: 199849.2539 | K187: 377301 | L187: 420964 | M187: 348763 | N187: 376726 | O187: 165534 | P187: 0 | Q187: 0 | R187: 0 | S187: 0 | T187: 0
E188: Payables as Percent of Expense | H188: 1 | I188: =IF(I$2,I186/I187,CHOOSE($H188,H188,AVERAGEIF($2:$2,TRUE,188:188))) -> 0.3620872413 | J188: 0.2017270478 | K188: 0.3145499217 | L188: 0.5868839141 | M188: 0.8256351735 | N188: 0.7913390634 | O188: 1.28933633 | P188: 1.28933633 | Q188: 1.28933633 | R188: 1.28933633 | S188: 1.28933633 | T188: 1.28933633
D190: Other Current Liabilities | I190: =IF(I2,I58,H190) -> 794.999 | J190: 5455 | K190: 17508 | L190: 3950 | M190: 3426 | N190: 68 | O190: 144 | P190: 144 | Q190: 144 | R190: 144 | S190: 144 | T190: 144
C192: Other Long-term Assets and Liabilities
D193: Other Long-term Assets | H193: =N39+N40+N42+N43+N44 -> 537000 | I193: =IF(I2,I39+I40+I42+I43+I44,$H193) -> 8490.885 | J193: 27007 | K193: 688880 | L193: 801603 | M193: 703029 | N193: 537000 | O193: 561125 | P193: 537000 | Q193: 537000 | R193: 537000 | S193: 537000 | T193: 537000
D194: Investments in Associates | H194: =N41 -> 63 | I194: =IF(I2,I41,$H194) -> 0 | J194: 19 | K194: 4278 | L194: 3808 | M194: 2203 | N194: 63 | O194: 45 | P194: 63 | Q194: 63 | R194: 63 | S194: 63 | T194: 63
D195: Deferred Tax Assets | H195: =N45 -> 37968 | I195: =IF(I2,I45,$H195) -> 328.038 | J195: 1681 | K195: 9698 | L195: 19144 | M195: 21781 | N195: 37968 | O195: 46629 | P195: 37968 | Q195: 37968 | R195: 37968 | S195: 37968 | T195: 37968
D197: Provisions and Other | H197: =N66+N69 -> 13451 | I197: =IF(I2,I66+I69,$H197) -> 15214.753 | J197: 16811 | K197: 213 | L197: 15538 | M197: 10573 | N197: 13451 | O197: 93008 | P197: 13451 | Q197: 13451 | R197: 13451 | S197: 13451 | T197: 13451
D198: Deferred Tax Liabilities | H198: =N67 -> 101640 | I198: =IF(I2,I67,$H198) -> 1704.998 | J198: 6904 | K198: 11110 | L198: 149574 | M198: 149627 | N198: 101640 | O198: 102483 | P198: 101640 | Q198: 101640 | R198: 101640 | S198: 101640 | T198: 101640
D200: Net Other Assets | H200: =H193+H194+H195-H197-H198 -> 459940 | I200: =I193+I194+I195-I197-I198 -> -8100.828 | J200: 4992 | K200: 691533 | L200: 659443 | M200: 566813 | N200: 459940 | O200: 412308 | P200: 459940 | Q200: 459940 | R200: 459940 | S200: 459940 | T200: 459940
D201: Increase in Other Assets | I201: =I200-H200 -> -468040.828 | J201: =J200-I200 -> 13092.828 | K201: 686541 | L201: -32090 | M201: -92630 | N201: -106873 | O201: -47632 | P201: 47632 | Q201: 0 | R201: 0 | S201: 0 | T201: 0
C203: Depreciation and Taxes
D204: Net Depreciation Rate
E205: Depreciation Expense | I205: =I81 -> 1864.804 | J205: 3204 | K205: 19370 | L205: 47619 | M205: 65132 | N205: 46145 | O205: 39179 | P205: 0 | Q205: 0 | R205: 0 | S205: 0 | T205: 0
E206: Plant | H206: Avg/Lst | I206: =I37 -> 30357.991 | J206: =I37 -> 30357.991 | K206: 76646 | L206: 347109 | M206: 527358 | N206: 574467 | O206: 594926 | P206: 540714 | Q206: 0 | R206: 0 | S206: 0 | T206: 0
E207: Historic | H207: 1 | I207: =IF(I$2,I205/I206,CHOOSE($H207,H207,AVERAGEIF($2:$2,TRUE,207:207))) -> 0.06142712145 | J207: 0.1055405807 | K207: 0.2527202985 | L207: 0.1371874541 | M207: 0.123506233 | N207: 0.08032663321 | O207: 0.06585524922 | P207: 0.06585524922 | Q207: 0.06585524922 | R207: 0.06585524922 | S207: 0.06585524922 | T207: 0.06585524922
E209: Income Taxes | I209: =-I26 -> 4110.723145 | J209: 22756.82031 | K209: 35650 | L209: 3183 | M209: 2551 | N209: -58978 | O209: -16873 | P209: 0 | Q209: 0 | R209: 0 | S209: 0 | T209: 0
E210: Pre-tax Income | I210: =I25 -> 14380.88672 | J210: 82895.52344 | K210: 154740 | L210: 641 | M210: -55522 | N210: -341683 | O210: -204586 | P210: 0 | Q210: 0 | R210: 0 | S210: 0 | T210: 0
E211: Income Tax Rate Applied | H211: 0.25 | I211: =IF(I2,I209/I210,$H211) -> 0.285846292 | J211: 0.2745241162 | K211: 0.2303864547 | L211: 4.965678627 | M211: -0.04594575123 | N211: 0.172610285 | O211: 0.08247387407 | P211: 0.25 | Q211: 0.25 | R211: 0.25 | S211: 0.25 | T211: 0.25
C213: Financing Assumptions
D214: Interest Expense Rate
E215: Interest Expense | I215: =-I21 -> 3860.204102 | J215: 4214.161133 | K215: 13785 | L215: 50994 | M215: 95095 | N215: 98431 | O215: 104106 | P215: 0 | Q215: 0 | R215: 0 | S215: 0 | T215: 0
E216: Total Debt | I216: =I56+I59+I60+I65+I68 -> 34567.231 | J216: 256504 | K216: 711640 | L216: 760032 | M216: 736237 | N216: 710732 | O216: 795265 | P216: 0 | Q216: 0 | R216: 0 | S216: 0 | T216: 0
E217: Prior Debt | I217: =I216 -> 34567.231 | J217: =I216 -> 34567.231 | K217: =J216 -> 256504 | L217: 711640 | M217: 760032 | N217: 736237 | O217: 710732 | P217: 795265 | Q217: 0 | R217: 0 | S217: 0 | T217: 0
E218: Historic | H218: 0.07 | I218: =IF(I2,I215/I217,$H$218) -> 0.1116723553 | J218: 0.1219120251 | K218: 0.05374185198 | L218: 0.07165701759 | M218: 0.1251197318 | N218: 0.1336947206 | O218: 0.1464771531 | P218: 0.07 | Q218: 0.07 | R218: 0.07 | S218: 0.07 | T218: 0.07
D220: Interest Income Rate
E221: Interest Income | I221: =I20 -> 342.3179932 | J221: 12335.08984 | K221: 22236 | L221: 39561 | M221: 9551 | N221: 3911 | O221: 5084 | P221: 0 | Q221: 0 | R221: 0 | S221: 0 | T221: 0
E222: Total Cash Balance | I222: =I51 -> 2371.03 | J222: 674907 | K222: 227765 | L222: 284322 | M222: 76535 | N222: 252856 | O222: 50702 | P222: 0 | Q222: 0 | R222: 0 | S222: 0 | T222: 0
E223: Prior Cash Balance | I223: =I222 -> 2371.03 | J223: =I222 -> 2371.03 | K223: =J222 -> 674907 | L223: 227765 | M223: 284322 | N223: 76535 | O223: 252856 | P223: 50702 | Q223: 0 | R223: 0 | S223: 0 | T223: 0
E224: Income Rate | H224: 0.03 | I224: =IF(I2,I221/I223,$H$224) -> 0.1443752264 | J224: 5.202418292 | K224: 0.03294676155 | L224: 0.1736921827 | M224: 0.03359219477 | N224: 0.05110080355 | O224: 0.02010630557 | P224: 0.03 | Q224: 0.03 | R224: 0.03 | S224: 0.03 | T224: 0.03
D226: Dividend Payout Ratio | I226: 0 | J226: 0 | K226: 0 | L226: 0 | M226: 0 | N226: 0 | O226: 0 | P226: 0 | Q226: 0 | R226: 0 | S226: 0 | T226: 0
A228: Operations
B229: Revenues | G229: 0
C230: Coal Price | F230: TRUE | G230: =F230+G229 -> 1 | I230: =I133 -> 48.18899505 | J230: 70.7912229 | K230: 113.035 | L230: 84.72857143 | M230: 76.72614035 | N230: 60.79759259 | O230: 66.32333333 | P230: 74 | Q230: 74 | R230: 74 | S230: 74 | T230: 74
... 198 more rows

Sheet Valuation Sheet
C2: Valuation Dates
D4: Valuation Year | E4: 2015
D5: Terminal Year | E5: 2020
C8: Economic Assumptions
D9: WACC | E9: 0.08
D10: Terminal Growth Rate | E10: 0.02
D11: Terminal EV/EBITDA | E11: 8
D13: Date | E13: Start | F13: End | H13: =E4 -> 2015 | I13: =H13+1 -> 2016 | J13: =I13+1 -> 2017 | K13: 2018 | L13: 2019 | M13: 2020 | N13: 2021 | O13: 2022
D14: Explicit period | E14: =E4 -> 2015 | F14: =E5 -> 2020 | H14: =AND(H13>=$E$14,H13<=$F$14) -> TRUE | I14: =AND(I13>=$E$14,I13<=$F$14) -> TRUE | J14: TRUE | K14: TRUE | L14: TRUE | M14: TRUE | N14: FALSE | O14: FALSE
D15: Terminal Value | H15: =H13=$F$14 -> FALSE | I15: =I13=$F$14 -> FALSE | J15: FALSE | K15: FALSE | L15: FALSE | M15: TRUE | N15: FALSE | O15: FALSE
D16: Column in Model | H16: =MATCH(H13,'Mongolia Mining Corporate Model'!$1:$1) -> 15 | I16: =MATCH(I13,'Mongolia Mining Corporate Model'!$1:$1) -> 16 | J16: =MATCH(J13,'Mongolia Mining Corporate Model'!$1:$1) -> 17 | K16: =MATCH(K13,'Mongolia Mining Corporate Model'!$1:$1) -> 18 | L16: =MATCH(L13,'Mongolia Mining Corporate Model'!$1:$1) -> 19 | M16: =MATCH(M13,'Mongolia Mining Corporate Model'!$1:$1) -> 20 | N16: =MATCH(N13,'Mongolia Mining Corporate Model'!$1:$1) -> 20 | O16: =MATCH(O13,'Mongolia Mining Corporate Model'!$1:$1) -> 20
D17: Period | H17: 1 | I17: 2 | J17: 3 | K17: 4 | L17: 5 | M17: 6 | N17: 7 | O17: 8
D18: EBIT | H18: =INDEX('Mongolia Mining Corporate Model'!$329:$329,'Valuation Sheet'!H16) -> -105228 | I18: =INDEX('Mongolia Mining Corporate Model'!$329:$329,'Valuation Sheet'!I16) -> 49063.14477 | J18: =INDEX('Mongolia Mining Corporate Model'!$329:$329,'Valuation Sheet'!J16) -> 49468.77584 | K18: =INDEX('Mongolia Mining Corporate Model'!$329:$329,'Valuation Sheet'!K16) -> 53592.99603 | L18: =INDEX('Mongolia Mining Corporate Model'!$329:$329,'Valuation Sheet'!L16) -> 57593.9132 | M18: =INDEX('Mongolia Mining Corporate Model'!$329:$329,'Valuation Sheet'!M16) -> 61482.61347 | N18: =INDEX('Mongolia Mining Corporate Model'!$329:$329,'Valuation Sheet'!N16) -> 61482.61347 | O18: =INDEX('Mongolia Mining Corporate Model'!$329:$329,'Valuation Sheet'!O16) -> 61482.61347
D20: EBITDA | H20: =INDEX('Mongolia Mining Corporate Model'!326:326,'Valuation Sheet'!H16) -> -66049 | I20: =INDEX('Mongolia Mining Corporate Model'!326:326,'Valuation Sheet'!I16) -> 84672 | J20: =INDEX('Mongolia Mining Corporate Model'!326:326,'Valuation Sheet'!J16) -> 86365.44 | K20: =INDEX('Mongolia Mining Corporate Model'!326:326,'Valuation Sheet'!K16) -> 88092.7488 | L20: =INDEX('Mongolia Mining Corporate Model'!326:326,'Valuation Sheet'!L16) -> 89854.60378 | M20: =INDEX('Mongolia Mining Corporate Model'!326:326,'Valuation Sheet'!M16) -> 91651.69585 | N20: =INDEX('Mongolia Mining Corporate Model'!326:326,'Valuation Sheet'!N16) -> 91651.69585 | O20: =INDEX('Mongolia Mining Corporate Model'!326:326,'Valuation Sheet'!O16) -> 91651.69585
D21: Less: Working Capital Change | H21: =INDEX('Mongolia Mining Corporate Model'!285:285,'Valuation Sheet'!H16) -> 22763 | I21: =INDEX('Mongolia Mining Corporate Model'!285:285,'Valuation Sheet'!I16) -> -23305.373 | J21: =INDEX('Mongolia Mining Corporate Model'!285:285,'Valuation Sheet'!J16) -> -1940.96746 | K21: =INDEX('Mongolia Mining Corporate Model'!285:285,'Valuation Sheet'!K16) -> -1979.786809 | L21: =INDEX('Mongolia Mining Corporate Model'!285:285,'Valuation Sheet'!L16) -> -2019.382545 | M21: =INDEX('Mongolia Mining Corporate Model'!285:285,'Valuation Sheet'!M16) -> -2059.770196 | N21: =INDEX('Mongolia Mining Corporate Model'!285:285,'Valuation Sheet'!N16) -> -2059.770196 | O21: =INDEX('Mongolia Mining Corporate Model'!285:285,'Valuation Sheet'!O16) -> -2059.770196
D22: Less: Capital Expenditures | H22: =INDEX('Mongolia Mining Corporate Model'!260:260,'Valuation Sheet'!H16) -> -884 | I22: =INDEX('Mongolia Mining Corporate Model'!260:260,'Valuation Sheet'!I16) -> 500 | J22: =INDEX('Mongolia Mining Corporate Model'!260:260,'Valuation Sheet'!J16) -> 500 | K22: =INDEX('Mongolia Mining Corporate Model'!260:260,'Valuation Sheet'!K16) -> 500 | L22: =INDEX('Mongolia Mining Corporate Model'!260:260,'Valuation Sheet'!L16) -> 500 | M22: =INDEX('Mongolia Mining Corporate Model'!260:260,'Valuation Sheet'!M16) -> 500 | N22: =INDEX('Mongolia Mining Corporate Model'!260:260,'Valuation Sheet'!N16) -> 500 | O22: =INDEX('Mongolia Mining Corporate Model'!260:260,'Valuation Sheet'!O16) -> 500 | P22: Very important!! The terminal year values are very important. Is this Capex capable of yielding the EBITDA?
D23: Less: Taxes (EBIT x t) | E23: 0.25 | H23: =$E$23*H18 -> -26307 | I23: =$E$23*I18 -> 12265.78619 | J23: 12367.19396 | K23: 13398.24901 | L23: 14398.4783 | M23: 15370.65337 | N23: 15370.65337 | O23: 15370.65337
D24: Free Cash Flow | H24: =(H20-H21-H22-H23)*H14 -> -61621 | I24: =(I20-I21-I22-I23)*I14 -> 95211.58681 | J24: 75439.2135 | K24: 76174.2866 | L24: 76975.50802 | M24: 77840.81268 | N24: 0 | O24: 0
D26: PV Factor | H26: =1/(1+$F$29)^H17 -> 0.9259259259 | I26: =1/(1+$F$29)^I17 -> 0.8573388203 | J26: 0.793832241 | K26: 0.7350298528 | L26: 0.680583197 | M26: 0.6301696269 | N26: 0.5834903953 | O26: 0.5402688845
D27: PV Factor (Half year) | H27: =1/(1+$F$29)^(H17-0.5) -> 0.9622504486 | I27: =1/(1+$F$29)^(I17-0.5) -> 0.8909726376 | J27: 0.8249746645 | K27: 0.7638654301 | L27: 0.7072828056 | M27: 0.6548914867 | N27: 0.6063810062 | O27: 0.5614638946
D29: PV of FCF Explicit Period | E29: =NPV(F29,H24:M24) -> 241889.7158 | F29: =E9 -> 0.08 | H29: NPV method on Excel gives the value at the beginning of the period but assumes that CFs happen at the end of the period.
D30: PV of Half Year | E30: =E29*(1+F29)^0.5 -> 251379.1666 | H30: Hence, we fix this by *(1+wacc)^0.5, to bring the CFs to half year and when CFs occur earlier they yield higher present value.
D32: PV of FCF Explicit Period | E32: =SUMPRODUCT(24:24,26:26) -> 241889.7158 | F32: Second method
D33: PV of Half Year | E33: =SUMPRODUCT(24:24,27:27) -> 251379.1666
D36: Terminal Value from growth | H36: =H24*(1+$E$10)/($E$9-$E$10)*H15 -> 0 | I36: 0 | J36: 0 | K36: 0 | L36: 0 | M36: 1323293.816 | N36: 0 | O36: 0
D37: PV of Terminal Value | E37: =NPV(F29,H36:O36) -> 833899.57
D38: PV of Terminal Value (Half Year) | E38: =E37*(1+F29)^0.5 -> 866613.8542
D40: Enterprise Value | E40: =E29+E37 -> 1075789.286
D41: Enterprise Value (Half Year) | E41: =E30+E38 -> 1117993.021
E43: =H13-1 -> 2014 | F43: =MATCH('Valuation Sheet'!E43,'Mongolia Mining Corporate Model'!1:1) -> 14
D44: Less: Net Debt | E44: =INDEX('Mongolia Mining Corporate Model'!413:413,'Valuation Sheet'!F43) -> 619854
D45: Equity Value | E45: =E41-E44 -> 498139.0208
D47: Terminal Value from EV/EBITDA | F47: =E11 -> 8 | H47: =$F$47*H20*H15 -> 0 | I47: =$F$47*I20*I15 -> 0 | J47: 0 | K47: 0 | L47: 0 | M47: 733213.5668 | N47: 0 | O47: 0
D48: PV of Terminal Value | E48: =NPV(E9,H47:O47) -> 462048.9198
D49: PV of Terminal Value (Half Year) | E49: =E48*(1+F29)^0.5 -> 480175.3228
D51: Enterprise Value | E51: =E48+E29 -> 703938.6357
D52: Enterprise Value (Half Year) | E52: =E49+E30 -> 731554.4894
D53: Equity Value | E53: =E52-E44 -> 111700.4894
D55: Number of Shares
D56: Equity Value per Share
J58: WACC
H59: =E45 -> 498139.0208 | I59: 0.05 | J59: 0.06 | K59: 0.07 | L59: 0.08
H60: 0 | I60: 851226.5829 | J60: 592205.2127 | K60: 407310.103 | L60: 268741.2359 | M60: Huge variation in value, bad model
F61: GR | H61: 0.01 | I61: 1163708.953 | J61: 791827.8151 | K61: 543998.3177 | L61: 367054.5723
H62: 0.02 | I62: 1684512.903 | J62: 1091261.719 | K62: 735361.8185 | L62: 498139.0208
H63: 0.03 | I63: 2726120.804 | J63: 1590318.225 | K63: 1022407.07 | L63: 681657.2488
H64: 0.04 | I64: 5850944.505 | J64: 2588431.237 | K64: 1500815.821 | L64: 956934.5907
J66: WACC
H67: =E53 -> 111700.4894 | I67: 0.05 | J67: 0.06 | K67: 0.07 | L67: 0.08
H68: 7 | I68: 151383.5036 | J68: 116235.6028 | K68: 83043.32635 | L68: 51678.57408 | M68: With this case the variation in value is much smaller
F69: EV/EBITDA | H69: 7.5 | I69: 186423.9286 | J69: 149496.0628 | K69: 114629.6974 | L69: 81689.53175 | M69: But EV/EBITDA is relative valuation, can be not very reliable.
H70: 8 | I70: 221464.3535 | J70: 182756.5227 | K70: 146216.0684 | L70: 111700.4894
H71: 8.5 | I71: 256504.7785 | J71: 216016.9827 | K71: 177802.4394 | L71: 141711.4471

Sheet Stock Prices
A1: Date | C1: Open | D1: High | E1: Low | F1: Close | G1: Volume | H1: Adj Close | K1: close | L1: adj close
A2: 2011-04-06 | B2: =YEAR(A2) -> 1905-07-03 | C2: 1.27 | D2: 1.27 | E2: 1.27 | F2: 1.27 | G2: 100 | H2: 8.64 | J2: 2011 | K2: =AVERAGEIF(B:B,J2,F:F) -> 1.051229947 | L2: =AVERAGEIF(B:B,J2,H:H) -> 7.150802139
A3: 2011-04-07 | B3: =YEAR(A3) -> 1905-07-03 | C3: 1.28 | D3: 1.28 | E3: 1.28 | F3: 1.28 | G3: 1400 | H3: 8.71 | J3: 2012 | K3: =AVERAGEIF(B:B,J3,F:F) -> 0.6674 | L3: =AVERAGEIF(B:B,J3,H:H) -> 4.54012
A4: 2011-04-08 | B4: 1905-07-03 | C4: 1.29 | D4: 1.29 | E4: 1.29 | F4: 1.29 | G4: 100 | H4: 8.78 | J4: 2013 | K4: =AVERAGEIF(B:B,J4,F:F) -> 0.2745634921 | L4: =AVERAGEIF(B:B,J4,H:H) -> 1.867539683
A5: 2011-04-11 | B5: 1905-07-03 | C5: 1.31 | D5: 1.31 | E5: 1.31 | F5: 1.31 | G5: 10600 | H5: 8.91 | J5: 2014 | K5: =AVERAGEIF(B:B,J5,F:F) -> 0.0869047619 | L5: =AVERAGEIF(B:B,J5,H:H) -> 0.5660714286
A6: 2011-04-12 | B6: 1905-07-03 | C6: 1.3 | D6: 1.3 | E6: 1.3 | F6: 1.3 | G6: 200 | H6: 8.84 | J6: 2015 | K6: =AVERAGEIF(B:B,J6,F:F) -> 0.0632 | L6: =AVERAGEIF(B:B,J6,H:H) -> 0.0632
A7: 2011-04-13 | B7: 1905-07-03 | C7: 1.3 | D7: 1.3 | E7: 1.3 | F7: 1.3 | G7: 100 | H7: 8.84
A8: 2011-04-14 | B8: 1905-07-03 | C8: 1.3 | D8: 1.3 | E8: 1.3 | F8: 1.3 | G8: 0 | H8: 8.84
A9: 2011-04-15 | B9: 1905-07-03 | C9: 1.29 | D9: 1.29 | E9: 1.29 | F9: 1.29 | G9: 700 | H9: 8.78
A10: 2011-04-18 | B10: 1905-07-03 | C10: 1.27 | D10: 1.28 | E10: 1.26 | F10: 1.28 | G10: 10300 | H10: 8.71
A11: 2011-04-19 | B11: 1905-07-03 | C11: 1.29 | D11: 1.29 | E11: 1.29 | F11: 1.29 | G11: 1300 | H11: 8.78
A12: 2011-04-20 | B12: 1905-07-03 | C12: 1.29 | D12: 1.29 | E12: 1.29 | F12: 1.29 | G12: 0 | H12: 8.78 | L12: 2011 | M12: 2012 | N12: 2013 | O12: 2014
A13: 2011-04-21 | B13: 1905-07-03 | C13: 1.26 | D13: 1.26 | E13: 1.26 | F13: 1.26 | G13: 400 | H13: 8.57 | J13: Price per share
A14: 2011-04-25 | B14: 1905-07-03 | C14: 1.24 | D14: 1.24 | E14: 1.24 | F14: 1.24 | G14: 1500 | H14: 8.44 | J14: Vlookup | L14: =VLOOKUP(L12,$J$2:$L$6,2) -> 1.051229947 | M14: =VLOOKUP(M12,$J$2:$L$6,2) -> 0.6674 | N14: =VLOOKUP(N12,$J$2:$L$6,2) -> 0.2745634921 | O14: =VLOOKUP(O12,$J$2:$L$6,2) -> 0.0869047619
A15: 2011-04-26 | B15: 1905-07-03 | C15: 1.22 | D15: 1.22 | E15: 1.22 | F15: 1.22 | G15: 400 | H15: 8.3 | J15: Lookup | L15: =LOOKUP(L12,$J:$J,$K:$K) -> 1.051229947 | M15: =LOOKUP(M12,$J:$J,$K:$K) -> 0.6674 | N15: =LOOKUP(N12,$J:$J,$K:$K) -> 0.2745634921 | O15: =LOOKUP(O12,$J:$J,$K:$K) -> 0.0869047619
A16: 2011-04-27 | B16: 1905-07-03 | C16: 1.22 | D16: 1.22 | E16: 1.22 | F16: 1.22 | G16: 0 | H16: 8.3 | J16: Match & Index | L16: =INDEX($K$2:$K$6,MATCH(L12,$J$2:$J$6)) -> 1.051229947 | M16: =INDEX($K$2:$K$6,MATCH(M12,$J$2:$J$6)) -> 0.6674 | N16: =INDEX($K$2:$K$6,MATCH(N12,$J$2:$J$6)) -> 0.2745634921 | O16: =INDEX($K$2:$K$6,MATCH(O12,$J$2:$J$6)) -> 0.0869047619
A17: 2011-04-28 | B17: 1905-07-03 | C17: 1.22 | D17: 1.22 | E17: 1.22 | F17: 1.22 | G17: 2300 | H17: 8.3
A18: 2011-04-29 | B18: 1905-07-03 | C18: 1.21 | D18: 1.21 | E18: 1.21 | F18: 1.21 | G18: 1500 | H18: 8.23 | J18: Number of shares
A19: 2011-05-02 | B19: 1905-07-03 | C19: 1.2 | D19: 1.21 | E19: 1.2 | F19: 1.21 | G19: 1400 | H19: 8.23 | J19: Market Cap
A20: 2011-05-03 | B20: 1905-07-03 | C20: 1.21 | D20: 1.21 | E20: 1.21 | F20: 1.21 | G20: 0 | H20: 8.23
A21: 2011-05-04 | B21: 1905-07-03 | C21: 1.21 | D21: 1.21 | E21: 1.21 | F21: 1.21 | G21: 0 | H21: 8.23
A22: 2011-05-05 | B22: 1905-07-03 | C22: 1.21 | D22: 1.21 | E22: 1.21 | F22: 1.21 | G22: 0 | H22: 8.23
A23: 2011-05-06 | B23: 1905-07-03 | C23: 1.23 | D23: 1.23 | E23: 1.22 | F23: 1.22 | G23: 1800 | H23: 8.3
A24: 2011-05-09 | B24: 1905-07-03 | C24: 1.22 | D24: 1.22 | E24: 1.22 | F24: 1.22 | G24: 0 | H24: 8.3
A25: 2011-05-10 | B25: 1905-07-03 | C25: 1.19 | D25: 1.19 | E25: 1.19 | F25: 1.19 | G25: 300 | H25: 8.1
A26: 2011-05-11 | B26: 1905-07-03 | C26: 1.18 | D26: 1.18 | E26: 1.18 | F26: 1.18 | G26: 1900 | H26: 8.03
A27: 2011-05-12 | B27: 1905-07-03 | C27: 1.18 | D27: 1.22 | E27: 1.18 | F27: 1.18 | G27: 1300 | H27: 8.03
A28: 2011-05-13 | B28: 1905-07-03 | C28: 1.22 | D28: 1.22 | E28: 1.22 | F28: 1.22 | G28: 100 | H28: 8.3
A29: 2011-05-16 | B29: 1905-07-03 | C29: 1.22 | D29: 1.22 | E29: 1.22 | F29: 1.22 | G29: 0 | H29: 8.3
A30: 2011-05-17 | B30: 1905-07-03 | C30: 1.22 | D30: 1.22 | E30: 1.22 | F30: 1.22 | G30: 0 | H30: 8.3
A31: 2011-05-18 | B31: 1905-07-03 | C31: 1.22 | D31: 1.22 | E31: 1.22 | F31: 1.22 | G31: 0 | H31: 8.3
A32: 2011-05-19 | B32: 1905-07-03 | C32: 1.22 | D32: 1.22 | E32: 1.22 | F32: 1.22 | G32: 0 | H32: 8.3
A33: 2011-05-20 | B33: 1905-07-03 | C33: 1.22 | D33: 1.22 | E33: 1.22 | F33: 1.22 | G33: 0 | H33: 8.3
A34: 2011-05-23 | B34: 1905-07-03 | C34: 1.22 | D34: 1.22 | E34: 1.22 | F34: 1.22 | G34: 0 | H34: 8.3
A35: 2011-05-24 | B35: 1905-07-03 | C35: 1.22 | D35: 1.22 | E35: 1.22 | F35: 1.22 | G35: 0 | H35: 8.3
A36: 2011-05-25 | B36: 1905-07-03 | C36: 1.19 | D36: 1.19 | E36: 1.19 | F36: 1.19 | G36: 300 | H36: 8.1
A37: 2011-05-26 | B37: 1905-07-03 | C37: 1.19 | D37: 1.19 | E37: 1.19 | F37: 1.19 | G37: 0 | H37: 8.1
A38: 2011-05-27 | B38: 1905-07-03 | C38: 1.2 | D38: 1.2 | E38: 1.2 | F38: 1.2 | G38: 100 | H38: 8.16
A39: 2011-05-31 | B39: 1905-07-03 | C39: 1.21 | D39: 1.21 | E39: 1.19 | F39: 1.21 | G39: 2100 | H39: 8.23
A40: 2011-06-01 | B40: 1905-07-03 | C40: 1.22 | D40: 1.22 | E40: 1.22 | F40: 1.22 | G40: 100 | H40: 8.3
A41: 2011-06-02 | B41: 1905-07-03 | C41: 1.22 | D41: 1.22 | E41: 1.22 | F41: 1.22 | G41: 0 | H41: 8.3
A42: 2011-06-03 | B42: 1905-07-03 | C42: 1.22 | D42: 1.22 | E42: 1.22 | F42: 1.22 | G42: 400 | H42: 8.3
A43: 2011-06-06 | B43: 1905-07-03 | C43: 1.21 | D43: 1.21 | E43: 1.2 | F43: 1.2 | G43: 500 | H43: 8.16
A44: 2011-06-07 | B44: 1905-07-03 | C44: 1.16 | D44: 1.16 | E44: 1.16 | F44: 1.16 | G44: 400 | H44: 7.89
A45: 2011-06-08 | B45: 1905-07-03 | C45: 1.16 | D45: 1.16 | E45: 1.16 | F45: 1.16 | G45: 2900 | H45: 7.89
A46: 2011-06-09 | B46: 1905-07-03 | C46: 1.21 | D46: 1.21 | E46: 1.21 | F46: 1.21 | G46: 400 | H46: 8.23
A47: 2011-06-10 | B47: 1905-07-03 | C47: 1.2 | D47: 1.2 | E47: 1.2 | F47: 1.2 | G47: 400 | H47: 8.16
A48: 2011-06-13 | B48: 1905-07-03 | C48: 1.2 | D48: 1.2 | E48: 1.2 | F48: 1.2 | G48: 0 | H48: 8.16
A49: 2011-06-14 | B49: 1905-07-03 | C49: 1.2 | D49: 1.2 | E49: 1.2 | F49: 1.2 | G49: 1800 | H49: 8.16
A50: 2011-06-15 | B50: 1905-07-03 | C50: 1.17 | D50: 1.17 | E50: 1.17 | F50: 1.17 | G50: 1100 | H50: 7.96
A51: 2011-06-16 | B51: 1905-07-03 | C51: 1.18 | D51: 1.18 | E51: 1.18 | F51: 1.18 | G51: 300 | H51: 8.03
A52: 2011-06-17 | B52: 1905-07-03 | C52: 1.18 | D52: 1.18 | E52: 1.18 | F52: 1.18 | G52: 0 | H52: 8.03
A53: 2011-06-20 | B53: 1905-07-03 | C53: 1.18 | D53: 1.18 | E53: 1.18 | F53: 1.18 | G53: 0 | H53: 8.03
A54: 2011-06-21 | B54: 1905-07-03 | C54: 1.18 | D54: 1.18 | E54: 1.18 | F54: 1.18 | G54: 0 | H54: 8.03
A55: 2011-06-22 | B55: 1905-07-03 | C55: 1.18 | D55: 1.18 | E55: 1.18 | F55: 1.18 | G55: 0 | H55: 8.03
A56: 2011-06-23 | B56: 1905-07-03 | C56: 1.25 | D56: 1.25 | E56: 1.25 | F56: 1.25 | G56: 100 | H56: 8.5
A57: 2011-06-24 | B57: 1905-07-03 | C57: 1.25 | D57: 1.25 | E57: 1.25 | F57: 1.25 | G57: 0 | H57: 8.5
A58: 2011-06-27 | B58: 1905-07-03 | C58: 1.25 | D58: 1.25 | E58: 1.25 | F58: 1.25 | G58: 0 | H58: 8.5
A59: 2011-06-28 | B59: 1905-07-03 | C59: 1.25 | D59: 1.25 | E59: 1.25 | F59: 1.25 | G59: 0 | H59: 8.5
A60: 2011-06-29 | B60: 1905-07-03 | C60: 1.25 | D60: 1.25 | E60: 1.25 | F60: 1.25 | G60: 0 | H60: 8.5
A61: 2011-06-30 | B61: 1905-07-03 | C61: 1.27 | D61: 1.28 | E61: 1.27 | F61: 1.28 | G61: 300 | H61: 8.71
A62: 2011-07-01 | B62: 1905-07-03 | C62: 1.28 | D62: 1.28 | E62: 1.28 | F62: 1.28 | G62: 0 | H62: 8.71
A63: 2011-07-05 | B63: 1905-07-03 | C63: 1.28 | D63: 1.28 | E63: 1.28 | F63: 1.28 | G63: 0 | H63: 8.71
A64: 2011-07-06 | B64: 1905-07-03 | C64: 1.27 | D64: 1.27 | E64: 1.27 | F64: 1.27 | G64: 800 | H64: 8.64
A65: 2011-07-07 | B65: 1905-07-03 | C65: 1.28 | D65: 1.28 | E65: 1.28 | F65: 1.28 | G65: 0 | H65: 8.71
A66: 2011-07-08 | B66: 1905-07-03 | C66: 1.28 | D66: 1.28 | E66: 1.28 | F66: 1.28 | G66: 0 | H66: 8.71
A67: 2011-07-11 | B67: =YEAR(A67) -> 1905-07-03 | C67: 1.22 | D67: 1.29 | E67: 1.21 | F67: 1.21 | G67: 1300 | H67: 8.23
A68: 2011-07-12 | B68: 1905-07-03 | C68: 1.21 | D68: 1.21 | E68: 1.21 | F68: 1.21 | G68: 0 | H68: 8.23
A69: 2011-07-13 | B69: 1905-07-03 | C69: 1.21 | D69: 1.21 | E69: 1.21 | F69: 1.21 | G69: 0 | H69: 8.23
A70: 2011-07-14 | B70: 1905-07-03 | C70: 1.21 | D70: 1.21 | E70: 1.21 | F70: 1.21 | G70: 0 | H70: 8.23
A71: 2011-07-15 | B71: 1905-07-03 | C71: 1.21 | D71: 1.21 | E71: 1.21 | F71: 1.21 | G71: 0 | H71: 8.23
A72: 2011-07-18 | B72: 1905-07-03 | C72: 1.25 | D72: 1.26 | E72: 1.21 | F72: 1.21 | G72: 1900 | H72: 8.23
A73: 2011-07-19 | B73: 1905-07-03 | C73: 1.25 | D73: 1.25 | E73: 1.23 | F73: 1.25 | G73: 19300 | H73: 8.5
A74: 2011-07-20 | B74: 1905-07-03 | C74: 1.26 | D74: 1.26 | E74: 1.26 | F74: 1.26 | G74: 700 | H74: 8.57
A75: 2011-07-21 | B75: 1905-07-03 | C75: 1.26 | D75: 1.26 | E75: 1.26 | F75: 1.26 | G75: 0 | H75: 8.57
A76: 2011-07-22 | B76: 1905-07-03 | C76: 1.26 | D76: 1.26 | E76: 1.26 | F76: 1.26 | G76: 0 | H76: 8.57
A77: 2011-07-25 | B77: 1905-07-03 | C77: 1.26 | D77: 1.26 | E77: 1.26 | F77: 1.26 | G77: 100 | H77: 8.57
A78: 2011-07-26 | B78: 1905-07-03 | C78: 1.26 | D78: 1.26 | E78: 1.26 | F78: 1.26 | G78: 0 | H78: 8.57
A79: 2011-07-27 | B79: 1905-07-03 | C79: 1.22 | D79: 1.22 | E79: 1.22 | F79: 1.22 | G79: 100 | H79: 8.3
A80: 2011-07-28 | B80: 1905-07-03 | C80: 1.22 | D80: 1.22 | E80: 1.22 | F80: 1.22 | G80: 0 | H80: 8.3
A81: 2011-07-29 | B81: 1905-07-03 | C81: 1.22 | D81: 1.22 | E81: 1.22 | F81: 1.22 | G81: 0 | H81: 8.3
A82: 2011-08-01 | B82: 1905-07-03 | C82: 1.24 | D82: 1.24 | E82: 1.21 | F82: 1.21 | G82: 900 | H82: 8.23
A83: 2011-08-02 | B83: 1905-07-03 | C83: 1.23 | D83: 1.23 | E83: 1.21 | F83: 1.21 | G83: 1700 | H83: 8.23
A84: 2011-08-03 | B84: 1905-07-03 | C84: 1.21 | D84: 1.21 | E84: 1.21 | F84: 1.21 | G84: 100 | H84: 8.23
A85: 2011-08-04 | B85: 1905-07-03 | C85: 1.18 | D85: 1.18 | E85: 1.17 | F85: 1.18 | G85: 600 | H85: 8.03
A86: 2011-08-05 | B86: 1905-07-03 | C86: 1.14 | D86: 1.14 | E86: 1.14 | F86: 1.14 | G86: 200 | H86: 7.76
A87: 2011-08-08 | B87: 1905-07-03 | C87: 1.08 | D87: 1.08 | E87: 1.08 | F87: 1.08 | G87: 0 | H87: 7.35
A88: 2011-08-09 | B88: 1905-07-03 | C88: 1.06 | D88: 1.14 | E88: 1.06 | F88: 1.14 | G88: 6800 | H88: 7.76
A89: 2011-08-10 | B89: 1905-07-03 | C89: 1.14 | D89: 1.14 | E89: 1.14 | F89: 1.14 | G89: 0 | H89: 7.76
A90: 2011-08-11 | B90: 1905-07-03 | C90: 1.11 | D90: 1.11 | E90: 1.09 | F90: 1.1 | G90: 1400 | H90: 7.48
A91: 2011-08-12 | B91: 1905-07-03 | C91: 1.1 | D91: 1.1 | E91: 1.1 | F91: 1.1 | G91: 0 | H91: 7.48
A92: 2011-08-15 | B92: 1905-07-03 | C92: 1.11 | D92: 1.11 | E92: 1.1 | F92: 1.1 | G92: 600 | H92: 7.48
A93: 2011-08-16 | B93: 1905-07-03 | C93: 1.1 | D93: 1.1 | E93: 1.1 | F93: 1.1 | G93: 0 | H93: 7.48
A94: 2011-08-17 | B94: 1905-07-03 | C94: 1.08 | D94: 1.08 | E94: 1.08 | F94: 1.08 | G94: 300 | H94: 7.35
A95: 2011-08-18 | B95: 1905-07-03 | C95: 1.05 | D95: 1.05 | E95: 1.05 | F95: 1.05 | G95: 100 | H95: 7.14
A96: 2011-08-19 | B96: 1905-07-03 | C96: 1.05 | D96: 1.05 | E96: 1.05 | F96: 1.05 | G96: 0 | H96: 7.14
A97: 2011-08-22 | B97: 1905-07-03 | C97: 1.05 | D97: 1.05 | E97: 1.05 | F97: 1.05 | G97: 1800 | H97: 7.14
A98: 2011-08-23 | B98: 1905-07-03 | C98: 1.05 | D98: 1.05 | E98: 1.05 | F98: 1.05 | G98: 0 | H98: 7.14
A99: 2011-08-24 | B99: 1905-07-03 | C99: 1.05 | D99: 1.05 | E99: 1.05 | F99: 1.05 | G99: 0 | H99: 7.14
A100: 2011-08-25 | B100: 1905-07-03 | C100: 1.05 | D100: 1.05 | E100: 1.05 | F100: 1.05 | G100: 0 | H100: 7.14
A101: 2011-08-26 | B101: 1905-07-03 | C101: 1.06 | D101: 1.06 | E101: 1.06 | F101: 1.06 | G101: 1500 | H101: 7.21
A102: 2011-08-29 | B102: 1905-07-03 | C102: 1.1 | D102: 1.1 | E102: 1.1 | F102: 1.1 | G102: 1400 | H102: 7.48
A103: 2011-08-30 | B103: 1905-07-03 | C103: 1.1 | D103: 1.1 | E103: 1.1 | F103: 1.1 | G103: 0 | H103: 7.48
A104: 2011-08-31 | B104: 1905-07-03 | C104: 1.14 | D104: 1.14 | E104: 1.14 | F104: 1.14 | G104: 2300 | H104: 7.76
A105: 2011-09-01 | B105: 1905-07-03 | C105: 1.14 | D105: 1.14 | E105: 1.14 | F105: 1.14 | G105: 0 | H105: 7.76
A106: 2011-09-02 | B106: 1905-07-03 | C106: 1.14 | D106: 1.14 | E106: 1.14 | F106: 1.14 | G106: 100 | H106: 7.76
A107: 2011-09-06 | B107: 1905-07-03 | C107: 1.14 | D107: 1.14 | E107: 1.14 | F107: 1.14 | G107: 0 | H107: 7.76
A108: 2011-09-07 | B108: 1905-07-03 | C108: 1.1 | D108: 1.1 | E108: 1.1 | F108: 1.1 | G108: 1500 | H108: 7.48
A109: 2011-09-08 | B109: 1905-07-03 | C109: 1.1 | D109: 1.1 | E109: 1.1 | F109: 1.1 | G109: 1400 | H109: 7.48
A110: 2011-09-09 | B110: 1905-07-03 | C110: 1.1 | D110: 1.1 | E110: 1.08 | F110: 1.08 | G110: 1200 | H110: 7.35
A111: 2011-09-12 | B111: 1905-07-03 | C111: 1.05 | D111: 1.07 | E111: 1.05 | F111: 1.07 | G111: 600 | H111: 7.28
A112: 2011-09-13 | B112: 1905-07-03 | C112: 1.07 | D112: 1.07 | E112: 1.07 | F112: 1.07 | G112: 0 | H112: 7.28
A113: 2011-09-14 | B113: 1905-07-03 | C113: 1.07 | D113: 1.07 | E113: 1.06 | F113: 1.06 | G113: 1500 | H113: 7.21
A114: 2011-09-15 | B114: 1905-07-03 | C114: 1.06 | D114: 1.06 | E114: 1.06 | F114: 1.06 | G114: 0 | H114: 7.21
A115: 2011-09-16 | B115: 1905-07-03 | C115: 1.06 | D115: 1.06 | E115: 1.06 | F115: 1.06 | G115: 0 | H115: 7.21
A116: 2011-09-19 | B116: 1905-07-03 | C116: 1.06 | D116: 1.06 | E116: 1.05 | F116: 1.05 | G116: 400 | H116: 7.14
A117: 2011-09-20 | B117: 1905-07-03 | C117: 1 | D117: 1 | E117: 1 | F117: 1 | G117: 0 | H117: 6.8
A118: 2011-09-21 | B118: 1905-07-03 | C118: 1 | D118: 1 | E118: 1 | F118: 1 | G118: 0 | H118: 6.8
A119: 2011-09-22 | B119: 1905-07-03 | C119: 0.96 | D119: 0.98 | E119: 0.96 | F119: 0.98 | G119: 100 | H119: 6.67
A120: 2011-09-23 | B120: 1905-07-03 | C120: 0.95 | D120: 0.95 | E120: 0.95 | F120: 0.95 | G120: 700 | H120: 6.46
A121: 2011-09-26 | B121: 1905-07-03 | C121: 0.95 | D121: 0.95 | E121: 0.95 | F121: 0.95 | G121: 0 | H121: 6.46
A122: 2011-09-27 | B122: 1905-07-03 | C122: 0.95 | D122: 0.95 | E122: 0.95 | F122: 0.95 | G122: 0 | H122: 6.46
A123: 2011-09-28 | B123: 1905-07-03 | C123: 0.95 | D123: 0.95 | E123: 0.95 | F123: 0.95 | G123: 0 | H123: 6.46
A124: 2011-09-29 | B124: 1905-07-03 | C124: 0.94 | D124: 0.94 | E124: 0.94 | F124: 0.94 | G124: 200 | H124: 6.39
A125: 2011-09-30 | B125: 1905-07-03 | C125: 0.87 | D125: 0.87 | E125: 0.87 | F125: 0.87 | G125: 1000 | H125: 5.92
A126: 2011-10-03 | B126: 1905-07-03 | C126: 0.84 | D126: 0.85 | E126: 0.71 | F126: 0.71 | G126: 2500 | H126: 4.83
A127: 2011-10-04 | B127: 1905-07-03 | C127: 0.71 | D127: 0.71 | E127: 0.66 | F127: 0.66 | G127: 4900 | H127: 4.49
A128: 2011-10-05 | B128: 1905-07-03 | C128: 0.71 | D128: 0.71 | E128: 0.71 | F128: 0.71 | G128: 1800 | H128: 4.83
A129: 2011-10-06 | B129: 1905-07-03 | C129: 0.71 | D129: 0.71 | E129: 0.71 | F129: 0.71 | G129: 3900 | H129: 4.83
A130: 2011-10-07 | B130: 1905-07-03 | C130: 0.71 | D130: 0.71 | E130: 0.71 | F130: 0.71 | G130: 0 | H130: 4.83
A131: 2011-10-10 | B131: =YEAR(A131) -> 1905-07-03 | C131: 0.71 | D131: 0.71 | E131: 0.71 | F131: 0.71 | G131: 0 | H131: 4.83
A132: 2011-10-11 | B132: 1905-07-03 | C132: 0.83 | D132: 0.87 | E132: 0.83 | F132: 0.87 | G132: 300 | H132: 5.92
A133: 2011-10-12 | B133: 1905-07-03 | C133: 0.88 | D133: 0.9 | E133: 0.88 | F133: 0.9 | G133: 1600 | H133: 6.12
A134: 2011-10-13 | B134: 1905-07-03 | C134: 0.9 | D134: 0.9 | E134: 0.86 | F134: 0.9 | G134: 700 | H134: 6.12
A135: 2011-10-14 | B135: 1905-07-03 | C135: 0.9 | D135: 0.9 | E135: 0.9 | F135: 0.9 | G135: 0 | H135: 6.12
A136: 2011-10-17 | B136: 1905-07-03 | C136: 0.9 | D136: 0.9 | E136: 0.9 | F136: 0.9 | G136: 0 | H136: 6.12
A137: 2011-10-18 | B137: 1905-07-03 | C137: 0.9 | D137: 0.9 | E137: 0.9 | F137: 0.9 | G137: 0 | H137: 6.12
A138: 2011-10-19 | B138: 1905-07-03 | C138: 0.93 | D138: 0.93 | E138: 0.88 | F138: 0.88 | G138: 500 | H138: 5.99
A139: 2011-10-20 | B139: 1905-07-03 | C139: 0.85 | D139: 0.85 | E139: 0.85 | F139: 0.85 | G139: 100 | H139: 5.78
A140: 2011-10-21 | B140: 1905-07-03 | C140: 0.85 | D140: 0.85 | E140: 0.85 | F140: 0.85 | G140: 100 | H140: 5.78
A141: 2011-10-24 | B141: 1905-07-03 | C141: 0.85 | D141: 0.85 | E141: 0.85 | F141: 0.85 | G141: 0 | H141: 5.78
A142: 2011-10-25 | B142: 1905-07-03 | C142: 0.85 | D142: 0.9 | E142: 0.84 | F142: 0.9 | G142: 4600 | H142: 6.12
A143: 2011-10-26 | B143: 1905-07-03 | C143: 0.85 | D143: 0.85 | E143: 0.85 | F143: 0.85 | G143: 400 | H143: 5.78
A144: 2011-10-27 | B144: 1905-07-03 | C144: 0.85 | D144: 0.85 | E144: 0.85 | F144: 0.85 | G144: 0 | H144: 5.78
A145: 2011-10-28 | B145: 1905-07-03 | C145: 0.85 | D145: 0.85 | E145: 0.85 | F145: 0.85 | G145: 0 | H145: 5.78
A146: 2011-10-31 | B146: 1905-07-03 | C146: 0.85 | D146: 0.85 | E146: 0.85 | F146: 0.85 | G146: 0 | H146: 5.78
A147: 2011-11-01 | B147: 1905-07-03 | C147: 0.91 | D147: 0.91 | E147: 0.84 | F147: 0.84 | G147: 3400 | H147: 5.71
A148: 2011-11-02 | B148: 1905-07-03 | C148: 0.86 | D148: 0.93 | E148: 0.86 | F148: 0.93 | G148: 700 | H148: 6.33
A149: 2011-11-03 | B149: 1905-07-03 | C149: 0.9 | D149: 0.9 | E149: 0.9 | F149: 0.9 | G149: 100 | H149: 6.12
A150: 2011-11-04 | B150: 1905-07-03 | C150: 0.84 | D150: 0.84 | E150: 0.84 | F150: 0.84 | G150: 700 | H150: 5.71
A151: 2011-11-07 | B151: 1905-07-03 | C151: 0.84 | D151: 0.85 | E151: 0.84 | F151: 0.85 | G151: 1800 | H151: 5.78
A152: 2011-11-08 | B152: 1905-07-03 | C152: 0.84 | D152: 0.85 | E152: 0.84 | F152: 0.84 | G152: 1800 | H152: 5.71
A153: 2011-11-09 | B153: 1905-07-03 | C153: 0.84 | D153: 0.84 | E153: 0.84 | F153: 0.84 | G153: 21200 | H153: 5.71
A154: 2011-11-10 | B154: 1905-07-03 | C154: 0.84 | D154: 0.84 | E154: 0.84 | F154: 0.84 | G154: 1500 | H154: 5.71
A155: 2011-11-11 | B155: 1905-07-03 | C155: 0.85 | D155: 0.85 | E155: 0.85 | F155: 0.85 | G155: 700 | H155: 5.78
A156: 2011-11-14 | B156: 1905-07-03 | C156: 0.85 | D156: 0.85 | E156: 0.85 | F156: 0.85 | G156: 0 | H156: 5.78
A157: 2011-11-15 | B157: 1905-07-03 | C157: 0.85 | D157: 0.85 | E157: 0.85 | F157: 0.85 | G157: 0 | H157: 5.78
A158: 2011-11-16 | B158: 1905-07-03 | C158: 0.85 | D158: 0.89 | E158: 0.85 | F158: 0.89 | G158: 1500 | H158: 6.05
A159: 2011-11-17 | B159: 1905-07-03 | C159: 0.84 | D159: 0.85 | E159: 0.84 | F159: 0.85 | G159: 100 | H159: 5.78
A160: 2011-11-18 | B160: 1905-07-03 | C160: 0.85 | D160: 0.85 | E160: 0.85 | F160: 0.85 | G160: 0 | H160: 5.78
A161: 2011-11-21 | B161: 1905-07-03 | C161: 0.85 | D161: 0.85 | E161: 0.85 | F161: 0.85 | G161: 0 | H161: 5.78
A162: 2011-11-22 | B162: 1905-07-03 | C162: 0.85 | D162: 0.85 | E162: 0.85 | F162: 0.85 | G162: 0 | H162: 5.78
A163: 2011-11-23 | B163: 1905-07-03 | C163: 0.8 | D163: 0.8 | E163: 0.8 | F163: 0.8 | G163: 400 | H163: 5.44
A164: 2011-11-25 | B164: 1905-07-03 | C164: 0.8 | D164: 0.8 | E164: 0.8 | F164: 0.8 | G164: 1000 | H164: 5.44
A165: 2011-11-28 | B165: 1905-07-03 | C165: 0.79 | D165: 0.79 | E165: 0.79 | F165: 0.79 | G165: 1300 | H165: 5.37
A166: 2011-11-29 | B166: 1905-07-03 | C166: 0.81 | D166: 0.81 | E166: 0.81 | F166: 0.81 | G166: 100 | H166: 5.51
A167: 2011-11-30 | B167: 1905-07-03 | C167: 0.81 | D167: 0.81 | E167: 0.81 | F167: 0.81 | G167: 1500 | H167: 5.51
A168: 2011-12-01 | B168: 1905-07-03 | C168: 0.81 | D168: 0.81 | E168: 0.81 | F168: 0.81 | G168: 0 | H168: 5.51
A169: 2011-12-02 | B169: 1905-07-03 | C169: 0.78 | D169: 0.78 | E169: 0.78 | F169: 0.78 | G169: 300 | H169: 5.31
A170: 2011-12-05 | B170: 1905-07-03 | C170: 0.77 | D170: 0.77 | E170: 0.77 | F170: 0.77 | G170: 1500 | H170: 5.24
A171: 2011-12-06 | B171: 1905-07-03 | C171: 0.79 | D171: 0.79 | E171: 0.78 | F171: 0.78 | G171: 600 | H171: 5.31
A172: 2011-12-07 | B172: 1905-07-03 | C172: 0.78 | D172: 0.78 | E172: 0.78 | F172: 0.78 | G172: 0 | H172: 5.31
A173: 2011-12-08 | B173: 1905-07-03 | C173: 0.76 | D173: 0.76 | E173: 0.76 | F173: 0.76 | G173: 300 | H173: 5.17
A174: 2011-12-09 | B174: 1905-07-03 | C174: 0.76 | D174: 0.76 | E174: 0.76 | F174: 0.76 | G174: 0 | H174: 5.17
A175: 2011-12-12 | B175: 1905-07-03 | C175: 0.78 | D175: 0.78 | E175: 0.78 | F175: 0.78 | G175: 900 | H175: 5.31
A176: 2011-12-13 | B176: 1905-07-03 | C176: 0.77 | D176: 0.77 | E176: 0.77 | F176: 0.77 | G176: 100 | H176: 5.24
A177: 2011-12-14 | B177: 1905-07-03 | C177: 0.78 | D177: 0.78 | E177: 0.78 | F177: 0.78 | G177: 3800 | H177: 5.31
A178: 2011-12-15 | B178: 1905-07-03 | C178: 0.75 | D178: 0.75 | E178: 0.75 | F178: 0.75 | G178: 700 | H178: 5.1
A179: 2011-12-16 | B179: 1905-07-03 | C179: 0.75 | D179: 0.75 | E179: 0.75 | F179: 0.75 | G179: 0 | H179: 5.1
A180: 2011-12-19 | B180: 1905-07-03 | C180: 0.75 | D180: 0.75 | E180: 0.74 | F180: 0.74 | G180: 2900 | H180: 5.03
A181: 2011-12-20 | B181: 1905-07-03 | C181: 0.75 | D181: 0.75 | E181: 0.75 | F181: 0.75 | G181: 100 | H181: 5.1
A182: 2011-12-21 | B182: 1905-07-03 | C182: 0.74 | D182: 0.74 | E182: 0.74 | F182: 0.74 | G182: 2900 | H182: 5.03
A183: 2011-12-22 | B183: 1905-07-03 | C183: 0.74 | D183: 0.74 | E183: 0.74 | F183: 0.74 | G183: 0 | H183: 5.03
A184: 2011-12-23 | B184: 1905-07-03 | C184: 0.74 | D184: 0.74 | E184: 0.74 | F184: 0.74 | G184: 0 | H184: 5.03
A185: 2011-12-27 | B185: 1905-07-03 | C185: 0.78 | D185: 0.78 | E185: 0.78 | F185: 0.78 | G185: 2200 | H185: 5.31
A186: 2011-12-28 | B186: 1905-07-03 | C186: 0.72 | D186: 0.72 | E186: 0.72 | F186: 0.72 | G186: 200 | H186: 4.9
A187: 2011-12-29 | B187: 1905-07-03 | C187: 0.72 | D187: 0.72 | E187: 0.72 | F187: 0.72 | G187: 0 | H187: 4.9
A188: 2011-12-30 | B188: 1905-07-03 | C188: 0.79 | D188: 0.79 | E188: 0.79 | F188: 0.79 | G188: 1100 | H188: 5.37
A189: 2012-01-03 | B189: 1905-07-04 | C189: 0.8 | D189: 0.8 | E189: 0.74 | F189: 0.74 | G189: 200 | H189: 5.03
A190: 2012-01-04 | B190: 1905-07-04 | C190: 0.79 | D190: 0.8 | E190: 0.75 | F190: 0.75 | G190: 500 | H190: 5.1
A191: 2012-01-05 | B191: 1905-07-04 | C191: 0.73 | D191: 0.73 | E191: 0.73 | F191: 0.73 | G191: 100 | H191: 4.97
A192: 2012-01-06 | B192: 1905-07-04 | C192: 0.73 | D192: 0.73 | E192: 0.73 | F192: 0.73 | G192: 0 | H192: 4.97
A193: 2012-01-09 | B193: 1905-07-04 | C193: 0.73 | D193: 0.73 | E193: 0.73 | F193: 0.73 | G193: 0 | H193: 4.97
A194: 2012-01-10 | B194: 1905-07-04 | C194: 0.73 | D194: 0.73 | E194: 0.73 | F194: 0.73 | G194: 0 | H194: 4.97
A195: 2012-01-11 | B195: =YEAR(A195) -> 1905-07-04 | C195: 0.72 | D195: 0.72 | E195: 0.72 | F195: 0.72 | G195: 0 | H195: 4.9
A196: 2012-01-12 | B196: 1905-07-04 | C196: 0.72 | D196: 0.72 | E196: 0.72 | F196: 0.72 | G196: 0 | H196: 4.9
A197: 2012-01-13 | B197: 1905-07-04 | C197: 0.72 | D197: 0.72 | E197: 0.72 | F197: 0.72 | G197: 0 | H197: 4.9
A198: 2012-01-17 | B198: 1905-07-04 | C198: 0.79 | D198: 0.79 | E198: 0.79 | F198: 0.79 | G198: 100 | H198: 5.37
A199: 2012-01-18 | B199: 1905-07-04 | C199: 0.79 | D199: 0.79 | E199: 0.79 | F199: 0.79 | G199: 0 | H199: 5.37
A200: 2012-01-19 | B200: 1905-07-04 | C200: 0.81 | D200: 0.81 | E200: 0.8 | F200: 0.8 | G200: 100 | H200: 5.44
... 767 more rows

Sheet PF Modelling
B1: Time period | H1: 0 | I1: =H1+1 -> 1 | J1: =I1+1 -> 2 | K1: 3 | L1: 4 | M1: 5 | N1: 6 | O1: 7 | P1: 8 | Q1: 9 | R1: 10 | S1: 11 | T1: 12 | U1: 13 | V1: 14 | W1: 15 | X1: 16 | Y1: =X1+1 -> 17 | Z1: 18 | AA1: 19 | AB1: 20 | AC1: 21 | AD1: 22 | AE1: 23 | AF1: 24 | AG1: 25
C2: Operating period | F2: NoYears | G2: =F6 -> 18 | I2: =I1<=$G$2 -> TRUE | J2: TRUE | K2: TRUE | L2: TRUE | M2: TRUE | N2: TRUE | O2: TRUE | P2: TRUE | Q2: TRUE | R2: TRUE | S2: TRUE | T2: TRUE | U2: TRUE | V2: TRUE | W2: TRUE | X2: TRUE | Y2: =Y1<=$G$2 -> TRUE | Z2: TRUE | AA2: FALSE | AB2: FALSE | AC2: FALSE | AD2: FALSE | AE2: FALSE | AF2: FALSE | AG2: FALSE
A4: Assumptions
B5: Timing assumptions
C6: Project life | E6: years | F6: ='Scenario PF Model'!D9 -> 18
B8: Operating assumptions
C9: Capital expenditure | E9: USD | F9: 1000
C11: Revenues
D12: Price | E12: USD/unit | F12: 11 | H12: LLCR | I12: =G134 -> 1.213054331
D13: Inflation rate | E13: % | F13: ='Scenario PF Model'!H9 -> 0.04
D14: Volume | E14: units | F14: ='Scenario PF Model'!E9 -> 16
C16: Operating costs
D17: Fixed costs | E17: USD | F17: ='Scenario PF Model'!G9 -> 28
D18: Variable costs | E18: USD/unit | F18: ='Scenario PF Model'!F9 -> 4
B20: Taxes and depreciation
C21: Tax life | F21: 10
C22: Income tax rate | F22: 0.1
B24: Financing assumptions
C25: Senior Loan
D26: Size | E26: USD | F26: 700
D27: Repayment | E27: Sweep % | F27: 0.8
D28: Interest | E28: % | F28: 0.06
D29: Covenant
C31: Subordinated loan
D32: Size | F32: 0
D33: Repayment | F33: 0.8
D34: Interest | F34: 0.11
D35: Covenant
A37: Operations
B38: Capital expenditures | H38: =F9 -> 1000
C40: Revenues
D41: Prices | E41: USD | F41: =F12 -> 11 | G41: =F13 -> 0.04 | I41: =F41 -> 11 | J41: =I41*(1+$G$41) -> 11.44 | K41: =J41*(1+$G$41) -> 11.8976 | L41: 12.373504 | M41: 12.86844416 | N41: 13.38318193 | O41: 13.9185092 | P41: 14.47524957 | Q41: 15.05425955 | R41: 15.65642994 | S41: 16.28268713 | T41: 16.93399462 | U41: 17.6113544 | V41: 18.31580858 | W41: 19.04844092 | X41: 19.81037856 | Y41: =X41*(1+$G$41) -> 20.6027937 | Z41: 21.42690545 | AA41: 22.28398167 | AB41: 23.17534094 | AC41: 24.10235457 | AD41: 25.06644876 | AE41: 26.06910671 | AF41: 27.11187097 | AG41: 28.19634581
D42: Quantity | E42: Units | F42: =F14 -> 16 | I42: =$F42*I2 -> 16 | J42: 16 | K42: 16 | L42: 16 | M42: 16 | N42: 16 | O42: 16 | P42: 16 | Q42: 16 | R42: 16 | S42: 16 | T42: 16 | U42: 16 | V42: 16 | W42: 16 | X42: 16 | Y42: 16 | Z42: 16 | AA42: 0 | AB42: 0 | AC42: 0 | AD42: 0 | AE42: 0 | AF42: 0 | AG42: 0
D43: Total revenues | I43: =PRODUCT(I41:I42) -> 176 | J43: =PRODUCT(J41:J42) -> 183.04 | K43: 190.3616 | L43: 197.976064 | M43: 205.8951066 | N43: 214.1309108 | O43: 222.6961473 | P43: 231.6039931 | Q43: 240.8681529 | R43: 250.502879 | S43: 260.5229941 | T43: 270.9439139 | U43: 281.7816705 | V43: 293.0529373 | W43: 304.7750548 | X43: 316.966057 | Y43: =PRODUCT(Y41:Y42) -> 329.6446992 | Z43: 342.8304872 | AA43: 0 | AB43: 0 | AC43: 0 | AD43: 0 | AE43: 0 | AF43: 0 | AG43: 0
C45: Operating costs
D46: Fixed | I46: =$F$17*I2 -> 28 | J46: 28 | K46: 28 | L46: 28 | M46: 28 | N46: 28 | O46: 28 | P46: 28 | Q46: 28 | R46: 28 | S46: 28 | T46: 28 | U46: 28 | V46: 28 | W46: 28 | X46: 28 | Y46: 28 | Z46: 28 | AA46: 0 | AB46: 0 | AC46: 0 | AD46: 0 | AE46: 0 | AF46: 0 | AG46: 0
D47: Quantity | I47: =I42 -> 16 | J47: 16 | K47: 16 | L47: 16 | M47: 16 | N47: 16 | O47: 16 | P47: 16 | Q47: 16 | R47: 16 | S47: 16 | T47: 16 | U47: 16 | V47: 16 | W47: 16 | X47: 16 | Y47: 16 | Z47: 16 | AA47: 0 | AB47: 0 | AC47: 0 | AD47: 0 | AE47: 0 | AF47: 0 | AG47: 0
D48: variable costs per unit | I48: =$F$18 -> 4 | J48: =$F$18 -> 4 | K48: 4 | L48: 4 | M48: 4 | N48: 4 | O48: 4 | P48: 4 | Q48: 4 | R48: 4 | S48: 4 | T48: 4 | U48: 4 | V48: 4 | W48: 4 | X48: 4 | Y48: 4 | Z48: 4 | AA48: 4 | AB48: 4 | AC48: 4 | AD48: 4 | AE48: 4 | AF48: 4 | AG48: 4
D49: Variable costs | I49: =I47*I48 -> 64 | J49: =J47*J48 -> 64 | K49: 64 | L49: 64 | M49: 64 | N49: 64 | O49: 64 | P49: 64 | Q49: 64 | R49: 64 | S49: 64 | T49: 64 | U49: 64 | V49: 64 | W49: 64 | X49: 64 | Y49: =Y47*Y48 -> 64 | Z49: 64 | AA49: 0 | AB49: 0 | AC49: 0 | AD49: 0 | AE49: 0 | AF49: 0 | AG49: 0
D50: Total cost | I50: =I49+I46 -> 92 | J50: =J49+J46 -> 92 | K50: 92 | L50: 92 | M50: 92 | N50: 92 | O50: 92 | P50: 92 | Q50: 92 | R50: 92 | S50: 92 | T50: 92 | U50: 92 | V50: 92 | W50: 92 | X50: 92 | Y50: =Y49+Y46 -> 92 | Z50: 92 | AA50: 0 | AB50: 0 | AC50: 0 | AD50: 0 | AE50: 0 | AF50: 0 | AG50: 0
D52: EBITDA | I52: =I43-I50 -> 84 | J52: 91.04 | K52: 98.3616 | L52: 105.976064 | M52: 113.8951066 | N52: 122.1309108 | O52: 130.6961473 | P52: 139.6039931 | Q52: 148.8681529 | R52: 158.502879 | S52: 168.5229941 | T52: 178.9439139 | U52: 189.7816705 | V52: 201.0529373 | W52: 212.7750548 | X52: =X43-X50 -> 224.966057 | Y52: 237.6446992 | Z52: 250.8304872 | AA52: 0 | AB52: 0 | AC52: 0 | AD52: 0 | AE52: 0 | AF52: 0 | AG52: 0
A54: Taxes and depreciation
B55: Net plant balance
C56: Opening balance | I56: =H59 -> 1000 | J56: =I59 -> 900 | K56: 800 | L56: 700 | M56: 600 | N56: 500 | O56: 400 | P56: 300 | Q56: 200 | R56: 100 | S56: 0 | T56: 0 | U56: 0 | V56: 0 | W56: 0 | X56: =W59 -> 0 | Y56: 0 | Z56: 0 | AA56: 0 | AB56: 0 | AC56: 0 | AD56: 0 | AE56: 0 | AF56: 0 | AG56: 0
C57: Add: Capital expenditure | H57: =F9 -> 1000
C58: Less: depreciation | I58: =I60 -> 100 | J58: =J60 -> 100 | K58: 100 | L58: 100 | M58: 100 | N58: 100 | O58: 100 | P58: 100 | Q58: 100 | R58: 100 | S58: 0 | T58: 0 | U58: 0 | V58: 0 | W58: 0 | X58: 0 | Y58: 0 | Z58: 0 | AA58: 0 | AB58: 0 | AC58: 0 | AD58: 0 | AE58: 0 | AF58: 0 | AG58: 0
C59: Closing balance | H59: =H56+H57-H58 -> 1000 | I59: =I56+I57-I58 -> 900 | J59: =J56+J57-J58 -> 800 | K59: 700 | L59: 600 | M59: 500 | N59: 400 | O59: 300 | P59: 200 | Q59: 100 | R59: 0 | S59: 0 | T59: 0 | U59: 0 | V59: 0 | W59: 0 | X59: 0 | Y59: 0 | Z59: 0 | AA59: 0 | AB59: 0 | AC59: 0 | AD59: 0 | AE59: 0 | AF59: 0 | AG59: 0
C60: Depreciation expense | E60: depr rate | F60: =1/F21 -> 0.1 | I60: =MIN($I$56*$F$60,I56) -> 100 | J60: =MIN($I$56*$F$60,J56) -> 100 | K60: 100 | L60: 100 | M60: 100 | N60: 100 | O60: 100 | P60: 100 | Q60: 100 | R60: 100 | S60: 0 | T60: 0 | U60: 0 | V60: 0 | W60: 0 | X60: 0 | Y60: 0 | Z60: 0 | AA60: 0 | AB60: 0 | AC60: 0 | AD60: 0 | AE60: 0 | AF60: 0 | AG60: 0
C61: Plant Test | G61: =AND(I61:W61) -> TRUE | I61: =I59>=0 -> TRUE | J61: =J59>=0 -> TRUE | K61: TRUE | L61: TRUE | M61: TRUE | N61: TRUE | O61: TRUE | P61: TRUE | Q61: TRUE | R61: TRUE | S61: TRUE | T61: TRUE | U61: TRUE | V61: TRUE | W61: TRUE | X61: TRUE | Y61: TRUE | Z61: TRUE | AA61: TRUE | AB61: TRUE | AC61: TRUE | AD61: TRUE | AE61: TRUE | AF61: TRUE | AG61: TRUE
A63: Debt schedule
C64: Senior debt
D65: Opening balance | I65: =H67 -> 700 | J65: =I67 -> 658 | K65: 606.44 | L65: 544.4648 | M65: 471.156624 | N65: 385.5309149 | O65: 286.531859 | P65: 173.0276232 | Q65: 43.80528748 | R65: 0 | S65: 0 | T65: 0 | U65: 0 | V65: 0 | W65: 0 | X65: 0 | Y65: =X67 -> 0 | Z65: 0 | AA65: 0 | AB65: 0 | AC65: 0 | AD65: 0 | AE65: 0 | AF65: 0 | AG65: 0
D66: Less : repayment | I66: =I101 -> 42 | J66: =J101 -> 51.56 | K66: 61.9752 | L66: 73.308176 | M66: 85.62570912 | N66: 98.99905593 | O66: 113.5042357 | P66: 129.2223358 | Q66: 43.80528748 | R66: 0 | S66: 0 | T66: 0 | U66: 0 | V66: 0 | W66: 0 | X66: 0 | Y66: =Y101 -> 0 | Z66: 0 | AA66: 0 | AB66: 0 | AC66: 0 | AD66: 0 | AE66: 0 | AF66: 0 | AG66: 0
D67: closing balance | H67: =$F$26 -> 700 | I67: =I65-I66 -> 658 | J67: =J65-J66 -> 606.44 | K67: 544.4648 | L67: 471.156624 | M67: 385.5309149 | N67: 286.531859 | O67: 173.0276232 | P67: 43.80528748 | Q67: 0 | R67: 0 | S67: 0 | T67: 0 | U67: 0 | V67: 0 | W67: 0 | X67: 0 | Y67: =Y65-Y66 -> 0 | Z67: 0 | AA67: 0 | AB67: 0 | AC67: 0 | AD67: 0 | AE67: 0 | AF67: 0 | AG67: 0
D68: interest expense | E68: Int Rate | F68: =F28 -> 0.06 | I68: =$F$68*I65 -> 42 | J68: =$F$68*J65 -> 39.48 | K68: 36.3864 | L68: 32.667888 | M68: 28.26939744 | N68: 23.13185489 | O68: 17.19191154 | P68: 10.38165739 | Q68: 2.628317249 | R68: 0 | S68: 0 | T68: 0 | U68: 0 | V68: 0 | W68: 0 | X68: 0 | Y68: =$F$68*Y65 -> 0 | Z68: 0 | AA68: 0 | AB68: 0 | AC68: 0 | AD68: 0 | AE68: 0 | AF68: 0 | AG68: 0
D69: Total debt facility | I69: =SUM(I67:I68) -> 700 | J69: =SUM(J67:J68) -> 645.92 | K69: 580.8512 | L69: 503.824512 | M69: 413.8003123 | N69: 309.6637138 | O69: 190.2195348 | P69: 54.18694487 | Q69: 2.628317249 | R69: 0 | S69: 0 | T69: 0 | U69: 0 | V69: 0 | W69: 0 | X69: 0 | Y69: =SUM(Y67:Y68) -> 0 | Z69: 0 | AA69: 0 | AB69: 0 | AC69: 0 | AD69: 0 | AE69: 0 | AF69: 0 | AG69: 0
D70: Debt Test Senior | G70: =AND(I70:X70) -> TRUE | I70: =I69>=0 -> TRUE | J70: =J69>=0 -> TRUE | K70: TRUE | L70: TRUE | M70: TRUE | N70: TRUE | O70: TRUE | P70: TRUE | Q70: TRUE | R70: TRUE | S70: TRUE | T70: TRUE | U70: TRUE | V70: TRUE | W70: TRUE | X70: TRUE | Y70: TRUE | Z70: TRUE | AA70: TRUE | AB70: TRUE | AC70: TRUE | AD70: TRUE | AE70: TRUE | AF70: TRUE | AG70: TRUE
C72: Subordinated loan
D73: Opening balance | I73: =H76 -> 0 | J73: 0 | K73: 0 | L73: 0 | M73: 0 | N73: 0 | O73: 0 | P73: 0 | Q73: 0 | R73: 0 | S73: 0 | T73: 0 | U73: 0 | V73: 0 | W73: 0 | X73: 0 | Y73: =X76 -> 0 | Z73: 0 | AA73: 0 | AB73: 0 | AC73: 0 | AD73: 0 | AE73: 0 | AF73: 0 | AG73: 0
D74: Less : repayment | I74: =I103 -> 0 | J74: =J103 -> 0 | K74: 0 | L74: 0 | M74: 0 | N74: 0 | O74: 0 | P74: 0 | Q74: 0 | R74: 0 | S74: 0 | T74: 0 | U74: 0 | V74: 0 | W74: 0 | X74: 0 | Y74: =Y103 -> 0 | Z74: 0 | AA74: 0 | AB74: 0 | AC74: 0 | AD74: 0 | AE74: 0 | AF74: 0 | AG74: 0
D75: Add: capitalized interest | E75: Int Rate | F75: =F34 -> 0.11 | I75: =I73*$F$75 -> 0 | J75: =J73*$F$75 -> 0 | K75: 0 | L75: 0 | M75: 0 | N75: 0 | O75: 0 | P75: 0 | Q75: 0 | R75: 0 | S75: 0 | T75: 0 | U75: 0 | V75: 0 | W75: 0 | X75: 0 | Y75: =Y73*$F$75 -> 0 | Z75: 0 | AA75: 0 | AB75: 0 | AC75: 0 | AD75: 0 | AE75: 0 | AF75: 0 | AG75: 0
D76: closing balance | H76: =F32 -> 0 | I76: =I73-I74+I75 -> 0 | J76: =J73-J74+J75 -> 0 | K76: 0 | L76: 0 | M76: 0 | N76: 0 | O76: 0 | P76: 0 | Q76: 0 | R76: 0 | S76: 0 | T76: 0 | U76: 0 | V76: 0 | W76: 0 | X76: 0 | Y76: =Y73-Y74+Y75 -> 0 | Z76: 0 | AA76: 0 | AB76: 0 | AC76: 0 | AD76: 0 | AE76: 0 | AF76: 0 | AG76: 0
D77: Debt Test Sub | G77: =AND(I77:AG77) -> TRUE | I77: =I76>=0 -> TRUE | J77: =J76>=0 -> TRUE | K77: TRUE | L77: TRUE | M77: TRUE | N77: TRUE | O77: TRUE | P77: TRUE | Q77: TRUE | R77: TRUE | S77: TRUE | T77: TRUE | U77: TRUE | V77: TRUE | W77: TRUE | X77: TRUE | Y77: TRUE | Z77: TRUE | AA77: TRUE | AB77: TRUE | AC77: TRUE | AD77: TRUE | AE77: TRUE | AF77: TRUE | AG77: TRUE
B79: Income statement
D80: Revenue | I80: =I43 -> 176 | J80: 183.04 | K80: 190.3616 | L80: 197.976064 | M80: 205.8951066 | N80: 214.1309108 | O80: 222.6961473 | P80: 231.6039931 | Q80: 240.8681529 | R80: 250.502879 | S80: 260.5229941 | T80: 270.9439139 | U80: 281.7816705 | V80: 293.0529373 | W80: 304.7750548 | X80: 316.966057 | Y80: 329.6446992 | Z80: 342.8304872 | AA80: 0 | AB80: 0 | AC80: 0 | AD80: 0 | AE80: 0 | AF80: 0 | AG80: 0
D81: OPEX | I81: =I50 -> 92 | J81: 92 | K81: 92 | L81: 92 | M81: 92 | N81: 92 | O81: 92 | P81: 92 | Q81: 92 | R81: 92 | S81: 92 | T81: 92 | U81: 92 | V81: 92 | W81: 92 | X81: 92 | Y81: 92 | Z81: 92 | AA81: 0 | AB81: 0 | AC81: 0 | AD81: 0 | AE81: 0 | AF81: 0 | AG81: 0
D82: EBITDA | I82: =I80-I81 -> 84 | J82: =J80-J81 -> 91.04 | K82: 98.3616 | L82: 105.976064 | M82: 113.8951066 | N82: 122.1309108 | O82: 130.6961473 | P82: 139.6039931 | Q82: 148.8681529 | R82: 158.502879 | S82: 168.5229941 | T82: 178.9439139 | U82: 189.7816705 | V82: 201.0529373 | W82: 212.7750548 | X82: 224.966057 | Y82: =Y80-Y81 -> 237.6446992 | Z82: 250.8304872 | AA82: 0 | AB82: 0 | AC82: 0 | AD82: 0 | AE82: 0 | AF82: 0 | AG82: 0
D83: Depreciation | I83: =I60 -> 100 | J83: =J60 -> 100 | K83: 100 | L83: 100 | M83: 100 | N83: 100 | O83: 100 | P83: 100 | Q83: 100 | R83: 100 | S83: 0 | T83: 0 | U83: 0 | V83: 0 | W83: 0 | X83: 0 | Y83: 0 | Z83: 0 | AA83: 0 | AB83: 0 | AC83: 0 | AD83: 0 | AE83: 0 | AF83: 0 | AG83: 0
D84: EBIT | I84: =I82-I83 -> -16 | J84: =J82-J83 -> -8.96 | K84: -1.6384 | L84: 5.976064 | M84: 13.89510656 | N84: 22.13091082 | O84: 30.69614726 | P84: 39.60399315 | Q84: 48.86815287 | R84: 58.50287899 | S84: 168.5229941 | T84: 178.9439139 | U84: 189.7816705 | V84: 201.0529373 | W84: 212.7750548 | X84: 224.966057 | Y84: =Y82-Y83 -> 237.6446992 | Z84: 250.8304872 | AA84: 0 | AB84: 0 | AC84: 0 | AD84: 0 | AE84: 0 | AF84: 0 | AG84: 0
D85: Interest | I85: =I68+I75 -> 42 | J85: =J68+J75 -> 39.48 | K85: 36.3864 | L85: 32.667888 | M85: 28.26939744 | N85: 23.13185489 | O85: 17.19191154 | P85: 10.38165739 | Q85: 2.628317249 | R85: 0 | S85: 0 | T85: 0 | U85: 0 | V85: 0 | W85: 0 | X85: 0 | Y85: =Y68+Y75 -> 0 | Z85: 0 | AA85: 0 | AB85: 0 | AC85: 0 | AD85: 0 | AE85: 0 | AF85: 0 | AG85: 0
D86: EBT before NOL | I86: =I84-I85 -> -58 | J86: =J84-J85 -> -48.44 | K86: -38.0248 | L86: -26.691824 | M86: -14.37429088 | N86: -1.00094407 | O86: 13.50423572 | P86: 29.22233575 | Q86: 46.23983562 | R86: 58.50287899 | S86: 168.5229941 | T86: 178.9439139 | U86: 189.7816705 | V86: 201.0529373 | W86: 212.7750548 | X86: 224.966057 | Y86: =Y84-Y85 -> 237.6446992 | Z86: 250.8304872 | AA86: 0 | AB86: 0 | AC86: 0 | AD86: 0 | AE86: 0 | AF86: 0 | AG86: 0
D87: NOL opening balance | I87: =H90 -> 0 | J87: =I90 -> 58 | K87: 106.44 | L87: 144.4648 | M87: 171.156624 | N87: 185.5309149 | O87: 186.531859 | P87: 173.0276232 | Q87: 143.8052875 | R87: 97.56545186 | S87: 39.06257287 | T87: 0 | U87: 0 | V87: 0 | W87: 0 | X87: 0 | Y87: =X90 -> 0 | Z87: 0 | AA87: 0 | AB87: 0 | AC87: 0 | AD87: 0 | AE87: 0 | AF87: 0 | AG87: 0
D88: Add: NOL made | I88: =MAX(-I86,0) -> 58 | J88: =MAX(-J86,0) -> 48.44 | K88: 38.0248 | L88: 26.691824 | M88: 14.37429088 | N88: 1.00094407 | O88: 0 | P88: 0 | Q88: 0 | R88: 0 | S88: 0 | T88: 0 | U88: 0 | V88: 0 | W88: 0 | X88: 0 | Y88: =MAX(-Y86,0) -> 0 | Z88: 0 | AA88: 0 | AB88: 0 | AC88: 0 | AD88: 0 | AE88: 0 | AF88: 0 | AG88: 0
D89: Less: NOL used | I89: =MAX(MIN(I86,I87),0) -> 0 | J89: =MAX(MIN(J86,J87),0) -> 0 | K89: 0 | L89: 0 | M89: 0 | N89: 0 | O89: 13.50423572 | P89: 29.22233575 | Q89: 46.23983562 | R89: 58.50287899 | S89: 39.06257287 | T89: 0 | U89: 0 | V89: 0 | W89: 0 | X89: 0 | Y89: =MAX(MIN(Y86,Y87),0) -> 0 | Z89: 0 | AA89: 0 | AB89: 0 | AC89: 0 | AD89: 0 | AE89: 0 | AF89: 0 | AG89: 0
D90: NOL closing balance | H90: 0 | I90: =I87+I88-I89 -> 58 | J90: =J87+J88-J89 -> 106.44 | K90: 144.4648 | L90: 171.156624 | M90: 185.5309149 | N90: 186.531859 | O90: 173.0276232 | P90: 143.8052875 | Q90: 97.56545186 | R90: 39.06257287 | S90: 0 | T90: 0 | U90: 0 | V90: 0 | W90: 0 | X90: 0 | Y90: =Y87+Y88-Y89 -> 0 | Z90: 0 | AA90: 0 | AB90: 0 | AC90: 0 | AD90: 0 | AE90: 0 | AF90: 0 | AG90: 0
D91: Adjusted EBT | I91: =I86+I88-I89 -> 0 | J91: =J86+J88-J89 -> 0 | K91: 0 | L91: 0 | M91: 0 | N91: 0 | O91: 0 | P91: 0 | Q91: 0 | R91: 0 | S91: 129.4604213 | T91: 178.9439139 | U91: 189.7816705 | V91: 201.0529373 | W91: 212.7750548 | X91: 224.966057 | Y91: =Y86+Y88-Y89 -> 237.6446992 | Z91: 250.8304872 | AA91: 0 | AB91: 0 | AC91: 0 | AD91: 0 | AE91: 0 | AF91: 0 | AG91: 0
D92: Tax | F92: =F22 -> 0.1 | I92: =I91*$F$92 -> 0 | J92: =J91*$F$92 -> 0 | K92: 0 | L92: 0 | M92: 0 | N92: 0 | O92: 0 | P92: 0 | Q92: 0 | R92: 0 | S92: 12.94604213 | T92: 17.89439139 | U92: 18.97816705 | V92: 20.10529373 | W92: 21.27750548 | X92: 22.4966057 | Y92: =Y91*$F$92 -> 23.76446992 | Z92: 25.08304872 | AA92: 0 | AB92: 0 | AC92: 0 | AD92: 0 | AE92: 0 | AF92: 0 | AG92: 0
D93: Earnings after tax | I93: =I86-I92 -> -58 | J93: =J86-J92 -> -48.44 | K93: -38.0248 | L93: -26.691824 | M93: -14.37429088 | N93: -1.00094407 | O93: 13.50423572 | P93: 29.22233575 | Q93: 46.23983562 | R93: 58.50287899 | S93: 155.576952 | T93: 161.0495225 | U93: 170.8035034 | V93: 180.9476436 | W93: 191.4975493 | X93: 202.4694513 | Y93: =Y86-Y92 -> 213.8802293 | Z93: 225.7474385 | AA93: 0 | AB93: 0 | AC93: 0 | AD93: 0 | AE93: 0 | AF93: 0 | AG93: 0
B95: Cash flow statement
D96: EBITDA | I96: =I52 -> 84 | J96: 91.04 | K96: 98.3616 | L96: 105.976064 | M96: 113.8951066 | N96: 122.1309108 | O96: 130.6961473 | P96: 139.6039931 | Q96: 148.8681529 | R96: 158.502879 | S96: 168.5229941 | T96: 178.9439139 | U96: 189.7816705 | V96: 201.0529373 | W96: 212.7750548 | X96: 224.966057 | Y96: 237.6446992 | Z96: 250.8304872 | AA96: 0 | AB96: 0 | AC96: 0 | AD96: 0 | AE96: 0 | AF96: 0 | AG96: 0
D97: less: taxes | I97: =I92 -> 0 | J97: =J92 -> 0 | K97: 0 | L97: 0 | M97: 0 | N97: 0 | O97: 0 | P97: 0 | Q97: 0 | R97: 0 | S97: 12.94604213 | T97: 17.89439139 | U97: 18.97816705 | V97: 20.10529373 | W97: 21.27750548 | X97: 22.4966057 | Y97: =Y92 -> 23.76446992 | Z97: 25.08304872 | AA97: 0 | AB97: 0 | AC97: 0 | AD97: 0 | AE97: 0 | AF97: 0 | AG97: 0
D98: operating cashflow | I98: =I96-I97 -> 84 | J98: =J96-J97 -> 91.04 | K98: 98.3616 | L98: 105.976064 | M98: 113.8951066 | N98: 122.1309108 | O98: 130.6961473 | P98: 139.6039931 | Q98: 148.8681529 | R98: 158.502879 | S98: 155.576952 | T98: 161.0495225 | U98: 170.8035034 | V98: 180.9476436 | W98: 191.4975493 | X98: 202.4694513 | Y98: =Y96-Y97 -> 213.8802293 | Z98: 225.7474385 | AA98: 0 | AB98: 0 | AC98: 0 | AD98: 0 | AE98: 0 | AF98: 0 | AG98: 0
D99: Less: interest expense | I99: =I68 -> 42 | J99: 39.48 | K99: 36.3864 | L99: 32.667888 | M99: 28.26939744 | N99: 23.13185489 | O99: 17.19191154 | P99: 10.38165739 | Q99: 2.628317249 | R99: 0 | S99: 0 | T99: 0 | U99: 0 | V99: 0 | W99: 0 | X99: 0 | Y99: =Y68 -> 0 | Z99: 0 | AA99: 0 | AB99: 0 | AC99: 0 | AD99: 0 | AE99: 0 | AF99: 0 | AG99: 0
D100: cash flow available for repayment | I100: =I98-I99 -> 42 | J100: =J98-J99 -> 51.56 | K100: 61.9752 | L100: 73.308176 | M100: 85.62570912 | N100: 98.99905593 | O100: 113.5042357 | P100: 129.2223358 | Q100: 146.2398356 | R100: 158.502879 | S100: 155.576952 | T100: 161.0495225 | U100: 170.8035034 | V100: 180.9476436 | W100: 191.4975493 | X100: 202.4694513 | Y100: =Y98-Y99 -> 213.8802293 | Z100: 225.7474385 | AA100: 0 | AB100: 0 | AC100: 0 | AD100: 0 | AE100: 0 | AF100: 0 | AG100: 0
D101: Less: senior loan repayment | I101: =MIN(I65,I100) -> 42 | J101: 51.56 | K101: 61.9752 | L101: 73.308176 | M101: 85.62570912 | N101: 98.99905593 | O101: 113.5042357 | P101: 129.2223358 | Q101: 43.80528748 | R101: 0 | S101: 0 | T101: 0 | U101: 0 | V101: 0 | W101: 0 | X101: 0 | Y101: =MIN(Y65,Y100) -> 0 | Z101: 0 | AA101: 0 | AB101: 0 | AC101: 0 | AD101: 0 | AE101: 0 | AF101: 0 | AG101: 0
D102: CF available for subordinated debt | I102: =I100-I101 -> 0 | J102: =J100-J101 -> 0 | K102: 0 | L102: 0 | M102: 0 | N102: 0 | O102: 0 | P102: 0 | Q102: 102.4345481 | R102: 158.502879 | S102: 155.576952 | T102: 161.0495225 | U102: 170.8035034 | V102: 180.9476436 | W102: 191.4975493 | X102: 202.4694513 | Y102: =Y100-Y101 -> 213.8802293 | Z102: 225.7474385 | AA102: 0 | AB102: 0 | AC102: 0 | AD102: 0 | AE102: 0 | AF102: 0 | AG102: 0
D103: Less: subordinated loan repayment | I103: =MIN(I73+I75,I102) -> 0 | J103: 0 | K103: 0 | L103: 0 | M103: 0 | N103: 0 | O103: 0 | P103: 0 | Q103: 0 | R103: 0 | S103: 0 | T103: 0 | U103: 0 | V103: 0 | W103: 0 | X103: 0 | Y103: =MIN(Y73+Y75,Y102) -> 0 | Z103: 0 | AA103: 0 | AB103: 0 | AC103: 0 | AD103: 0 | AE103: 0 | AF103: 0 | AG103: 0
D104: CF available for dividends | I104: =I102-I103 -> 0 | J104: =J102-J103 -> 0 | K104: 0 | L104: 0 | M104: 0 | N104: 0 | O104: 0 | P104: 0 | Q104: 102.4345481 | R104: 158.502879 | S104: 155.576952 | T104: 161.0495225 | U104: 170.8035034 | V104: 180.9476436 | W104: 191.4975493 | X104: 202.4694513 | Y104: =Y102-Y103 -> 213.8802293 | Z104: 225.7474385 | AA104: 0 | AB104: 0 | AC104: 0 | AD104: 0 | AE104: 0 | AF104: 0 | AG104: 0
B106: Balance sheet
C107: Equity balance
D108: Opening balance | I108: =H111 -> 300 | J108: =I111 -> 242 | K108: 193.56 | L108: 155.5352 | M108: 128.843376 | N108: 114.4690851 | O108: 113.468141 | P108: 126.9723768 | Q108: 156.1947125 | R108: 100 | S108: 0 | T108: 0 | U108: 0 | V108: 0 | W108: 0 | X108: 0 | Y108: =X111 -> 0 | Z108: 0 | AA108: 0 | AB108: 0 | AC108: 0 | AD108: 0 | AE108: 0 | AF108: 0 | AG108: 0
D109: Add: net income | I109: =I93 -> -58 | J109: -48.44 | K109: -38.0248 | L109: -26.691824 | M109: -14.37429088 | N109: -1.00094407 | O109: 13.50423572 | P109: 29.22233575 | Q109: 46.23983562 | R109: 58.50287899 | S109: 155.576952 | T109: 161.0495225 | U109: 170.8035034 | V109: 180.9476436 | W109: 191.4975493 | X109: 202.4694513 | Y109: =Y93 -> 213.8802293 | Z109: 225.7474385 | AA109: 0 | AB109: 0 | AC109: 0 | AD109: 0 | AE109: 0 | AF109: 0 | AG109: 0
D110: Less: dividends | I110: =I104 -> 0 | J110: 0 | K110: 0 | L110: 0 | M110: 0 | N110: 0 | O110: 0 | P110: 0 | Q110: 102.4345481 | R110: 158.502879 | S110: 155.576952 | T110: 161.0495225 | U110: 170.8035034 | V110: 180.9476436 | W110: 191.4975493 | X110: 202.4694513 | Y110: =Y104 -> 213.8802293 | Z110: 225.7474385 | AA110: 0 | AB110: 0 | AC110: 0 | AD110: 0 | AE110: 0 | AF110: 0 | AG110: 0
D111: Closing balance | H111: =F9-F26-F32 -> 300 | I111: =I108+I109-I110 -> 242 | J111: =J108+J109-J110 -> 193.56 | K111: 155.5352 | L111: 128.843376 | M111: 114.4690851 | N111: 113.468141 | O111: 126.9723768 | P111: 156.1947125 | Q111: 100 | R111: 0 | S111: 0 | T111: 0 | U111: 0 | V111: 0 | W111: 0 | X111: 0 | Y111: =Y108+Y109-Y110 -> 0 | Z111: 0 | AA111: 0 | AB111: 0 | AC111: 0 | AD111: 0 | AE111: 0 | AF111: 0 | AG111: 0
C113: Asset
D114: Net plant | H114: =H59 -> 1000 | I114: 900 | J114: 800 | K114: 700 | L114: 600 | M114: 500 | N114: 400 | O114: 300 | P114: 200 | Q114: 100 | R114: 0 | S114: 0 | T114: 0 | U114: 0 | V114: 0 | W114: 0 | X114: 0 | Y114: 0 | Z114: 0 | AA114: 0 | AB114: 0 | AC114: 0 | AD114: 0 | AE114: 0 | AF114: 0 | AG114: 0
C116: Liability
D117: Senior debt | H117: =H67 -> 700 | I117: 658 | J117: 606.44 | K117: 544.4648 | L117: 471.156624 | M117: 385.5309149 | N117: 286.531859 | O117: 173.0276232 | P117: 43.80528748 | Q117: 0 | R117: 0 | S117: 0 | T117: 0 | U117: 0 | V117: 0 | W117: 0 | X117: 0 | Y117: =Y67 -> 0 | Z117: 0 | AA117: 0 | AB117: 0 | AC117: 0 | AD117: 0 | AE117: 0 | AF117: 0 | AG117: 0
D118: Subordinated loan | H118: =H76 -> 0 | I118: 0 | J118: 0 | K118: 0 | L118: 0 | M118: 0 | N118: 0 | O118: 0 | P118: 0 | Q118: 0 | R118: 0 | S118: 0 | T118: 0 | U118: 0 | V118: 0 | W118: 0 | X118: 0 | Y118: =Y76 -> 0 | Z118: 0 | AA118: 0 | AB118: 0 | AC118: 0 | AD118: 0 | AE118: 0 | AF118: 0 | AG118: 0
C119: Equity
D120: shareholder's equity | H120: =H111 -> 300 | I120: =I111 -> 242 | J120: 193.56 | K120: 155.5352 | L120: 128.843376 | M120: 114.4690851 | N120: 113.468141 | O120: 126.9723768 | P120: 156.1947125 | Q120: 100 | R120: 0 | S120: 0 | T120: 0 | U120: 0 | V120: 0 | W120: 0 | X120: 0 | Y120: =Y111 -> 0 | Z120: 0 | AA120: 0 | AB120: 0 | AC120: 0 | AD120: 0 | AE120: 0 | AF120: 0 | AG120: 0
D121: Total Liabities and Equity | H121: =SUM(H117:H120) -> 1000 | I121: =SUM(I117:I120) -> 900 | J121: 800 | K121: 700 | L121: 600 | M121: 500 | N121: 400 | O121: 300 | P121: 200 | Q121: 100 | R121: 0 | S121: 0 | T121: 0 | U121: 0 | V121: 0 | W121: 0 | X121: 0 | Y121: 0 | Z121: 0 | AA121: 0 | AB121: 0 | AC121: 0 | AD121: 0 | AE121: 0 | AF121: 0 | AG121: 0
C123: Difference | H123: =H121-H114 -> 0 | I123: =I121-I114 -> 0 | J123: 0 | K123: 0 | L123: 0 | M123: 0 | N123: 0 | O123: 0 | P123: 0 | Q123: 0 | R123: 0 | S123: 0 | T123: 0 | U123: 0 | V123: 0 | W123: 0 | X123: 0 | Y123: 0 | Z123: 0 | AA123: 0 | AB123: 0 | AC123: 0 | AD123: 0 | AE123: 0 | AF123: 0 | AG123: 0
G124: =AND(H124:X124) -> TRUE | H124: =ROUND(H123,3)=0 -> TRUE | I124: =ROUND(I123,3)=0 -> TRUE | J124: TRUE | K124: TRUE | L124: TRUE | M124: TRUE | N124: TRUE | O124: TRUE | P124: TRUE | Q124: TRUE | R124: TRUE | S124: TRUE | T124: TRUE | U124: TRUE | V124: TRUE | W124: TRUE | X124: TRUE | Y124: TRUE | Z124: TRUE | AA124: TRUE | AB124: TRUE | AC124: TRUE | AD124: TRUE | AE124: TRUE | AF124: TRUE | AG124: TRUE
D126: Debt service | I126: =I66+I68 -> 84 | J126: =J66+J68 -> 91.04 | K126: 98.3616 | L126: 105.976064 | M126: 113.8951066 | N126: 122.1309108 | O126: 130.6961473 | P126: 139.6039931 | Q126: 46.43360473 | R126: 0 | S126: 0 | T126: 0 | U126: 0 | V126: 0 | W126: 0 | X126: 0 | Y126: 0 | Z126: 0 | AA126: 0 | AB126: 0 | AC126: 0 | AD126: 0 | AE126: 0 | AF126: 0 | AG126: 0
D127: NPV of Debt Service | F127: =F68 -> 0.06 | G127: =NPV(F127,I126:AG126) -> 700
D128: NPV_CF | F128: =F127 -> 0.06 | G128: =NPV(F128,82:82) -> 1558.216784
D129: PLCR | G129: =G128/F26 -> 2.226023977
D130: LLCR
D131: CF over loan life | F131: loan life | G131: 10 | I131: =(I1<=$G$131)*I96 -> 84 | J131: =(J1<=$G$131)*J96 -> 91.04 | K131: 98.3616 | L131: 105.976064 | M131: 113.8951066 | N131: 122.1309108 | O131: 130.6961473 | P131: 139.6039931 | Q131: 148.8681529 | R131: 158.502879 | S131: 0 | T131: 0 | U131: 0 | V131: 0 | W131: 0 | X131: 0 | Y131: 0 | Z131: 0 | AA131: 0 | AB131: 0 | AC131: 0 | AD131: 0 | AE131: 0 | AF131: 0 | AG131: 0
D133: NPV_CF over loan life | F133: =F127 -> 0.06 | G133: =NPV(F133,I131:AG131) -> 849.1380314
D134: LLCR loan life | F134: 0.95 | G134: =G133/F26 -> 1.213054331
D136: Plant test | G136: =G61 -> TRUE | H136: =IF(G136,"",D136) -> 
D137: senior test | G137: =G70 -> TRUE | H137: =IF(G137,"",D137) -> 
D138: subordinated test | G138: =G77 -> TRUE | H138: =IF(G138,"",D138) -> 
D139: balance sheet | G139: =G124 -> TRUE | H139: =IF(G139,"",D139) -> 
D141: total test | G141: =G136:G139 ->  | H141: =sum_labels(H136:H140) -> 
D144: loan life coverage ratio
L145: Price
I147: =G134 -> 1.213054331 | J147: 10 | K147: 11 | L147: 12 | M147: 13 | N147: 14 | O147: 15
I148: 900 | J148: 0.7893184147 | K148: 0.9434867016 | L148: 1.097654988 | M148: 1.251823275 | N148: 1.405991562 | O148: 1.560159849
I149: 800 | J149: 0.8879832165 | K149: 1.061422539 | L149: 1.234861862 | M149: 1.408301185 | N149: 1.581740507 | O149: 1.75517983
I150: 700 | J150: 1.014837962 | K150: 1.213054331 | L150: 1.411270699 | M150: 1.609487068 | N150: 1.807703437 | O150: 2.005919806
H151: debt | I151: 600 | J151: 1.183977622 | K151: 1.415230052 | L151: 1.646482483 | M151: 1.877734913 | N151: 2.108987343 | O151: 2.340239774
I152: 500 | J152: 1.420773146 | K152: 1.698276063 | L152: 1.975778979 | M152: 2.253281896 | N152: 2.530784812 | O152: 2.808287728
I153: 400 | J153: 1.775966433 | K153: 2.122845079 | L153: 2.469723724 | M153: 2.816602369 | N153: 3.163481015 | O153: 3.51035966
B156: Cash flow waterfall graph | I156: =I1 -> 1 | J156: 2 | K156: 3 | L156: 4 | M156: 5 | N156: 6 | O156: 7 | P156: 8 | Q156: 9 | R156: 10 | S156: 11 | T156: 12 | U156: 13 | V156: 14 | W156: 15 | X156: 16 | Y156: 17 | Z156: 18 | AA156: 19 | AB156: 20 | AC156: 21 | AD156: 22 | AE156: 23 | AF156: 24 | AG156: 25
C157: Ebitda | I157: =I96 -> 84 | J157: 91.04 | K157: 98.3616 | L157: 105.976064 | M157: 113.8951066 | N157: 122.1309108 | O157: 130.6961473 | P157: 139.6039931 | Q157: 148.8681529 | R157: 158.502879 | S157: 168.5229941 | T157: 178.9439139 | U157: 189.7816705 | V157: 201.0529373 | W157: 212.7750548 | X157: 224.966057 | Y157: =Y96 -> 237.6446992 | Z157: 250.8304872 | AA157: 0 | AB157: 0 | AC157: 0 | AD157: 0 | AE157: 0 | AF157: 0 | AG157: 0
C158: Senior debt service | I158: =I66+I68 -> 84 | J158: 91.04 | K158: 98.3616 | L158: 105.976064 | M158: 113.8951066 | N158: 122.1309108 | O158: 130.6961473 | P158: 139.6039931 | Q158: 46.43360473 | R158: 0 | S158: 0 | T158: 0 | U158: 0 | V158: 0 | W158: 0 | X158: 0 | Y158: =Y66+Y68 -> 0 | Z158: 0 | AA158: 0 | AB158: 0 | AC158: 0 | AD158: 0 | AE158: 0 | AF158: 0 | AG158: 0
C159: Subordinated debt service | I159: =I103 -> 0 | J159: 0 | K159: 0 | L159: 0 | M159: 0 | N159: 0 | O159: 0 | P159: 0 | Q159: 0 | R159: 0 | S159: 0 | T159: 0 | U159: 0 | V159: 0 | W159: 0 | X159: 0 | Y159: =Y103 -> 0 | Z159: 0 | AA159: 0 | AB159: 0 | AC159: 0 | AD159: 0 | AE159: 0 | AF159: 0 | AG159: 0
C160: Equity | I160: =I157-I158-I159 -> 0 | J160: =J157-J158-J159 -> 0 | K160: 0 | L160: 0 | M160: 0 | N160: 0 | O160: 0 | P160: 0 | Q160: 102.4345481 | R160: 158.502879 | S160: 168.5229941 | T160: 178.9439139 | U160: 189.7816705 | V160: 201.0529373 | W160: 212.7750548 | X160: 224.966057 | Y160: =Y157-Y158-Y159 -> 237.6446992 | Z160: 250.8304872 | AA160: 0 | AB160: 0 | AC160: 0 | AD160: 0 | AE160: 0 | AF160: 0 | AG160: 0

Sheet Scenario PF Model
D1: Loan size | E1: ='PF Modelling'!F26 -> 700
D2: Scenario # | E2: 3
D3: Price | E3: Qua | F3: Variables | G3: Fixe | H3: Growth | J3: LLCR | K3: PLCR
J4: ='PF Modelling'!G134 -> 1.213054331 | K4: ='PF Modelling'!G129 -> 2.226023977
C5: Base | D5: 15 | E5: 15 | F5: 5 | G5: 30 | H5: 0.02 | I5: 1 | J5: 0.7776933944 | K5: 1.126686488
C6: Lo | D6: 12 | E6: 11 | F6: 6 | G6: 32 | H6: 0 | I6: 2 | J6: 0.2418314317 | K6: 0.275469158
C7: High | D7: 18 | E7: 16 | F7: 4 | G7: 28 | H7: 0.04 | I7: 3 | J7: 1.213054331 | K7: 2.226023977
C9: =INDEX(C5:C7,$E$2) -> High | D9: 18 | E9: 16 | F9: 4 | G9: 28 | H9: 0.04

Sheet Cash Flow Analysis Corp Model
C2: assets | D2: 700
C3: cash | D3: 100
C5: Debt | D5: 500
C6: Equity | D6: 300
C8: EBIT | E8: -10 | F8: 20 | G8: 100 | H8: 300 | I8: 300
C10: Interest rate assumption | E10: 0.05 | F10: 0.05 | G10: 0.05 | H10: 0.05 | I10: 0.05
C11: Interest income assumptions | E11: 0.02 | F11: 0.02 | G11: 0.02 | H11: 0.02 | I11: 0.02
C12: Minimum cash balance | E12: 80 | F12: 80 | G12: 80 | H12: 80 | I12: 80
C15: Net cash account
C16: Opening balance | E16: =D18 -> -400 | F16: =E18 -> -433 | G16: =F18 -> -437.05 | H16: =G18 -> -361.3025 | I16: =H18 -> -81.767625
C17: Add surplus cash | E17: =E30 -> -33 | F17: =F30 -> -4.05 | G17: =G30 -> 75.7475 | H17: =H30 -> 279.534875 | I17: =I30 -> 293.5116188
C18: Closing balance | D18: =D3-D5 -> -400 | E18: =E16+E17 -> -433 | F18: =F16+F17 -> -437.05 | G18: =G16+G17 -> -361.3025 | H18: =H16+H17 -> -81.767625 | I18: =I16+I17 -> 211.7439938
C20: Cash Balance | D20: =D3 -> 100 | E20: =MAX(E18,E12) -> 80 | F20: =MAX(F18,F12) -> 80 | G20: =MAX(G18,G12) -> 80 | H20: =MAX(H18,H12) -> 80 | I20: =MAX(I18,I12) -> 211.7439938
C21: Interest income | E21: =E11*D20 -> 2 | F21: =F11*E20 -> 1.6 | G21: =G11*F20 -> 1.6 | H21: =H11*G20 -> 1.6 | I21: =I11*H20 -> 1.6
C23: Debt balance | D23: =D5 -> 500 | E23: =MAX(-E18+E12,0) -> 513 | F23: =MAX(-F18+F12,0) -> 517.05 | G23: =MAX(-G18+G12,0) -> 441.3025 | H23: =MAX(-H18+H12,0) -> 161.767625 | I23: =MAX(-I18+I12,0) -> 0
C24: Interest expence | E24: =E10*D23 -> 25 | F24: =F10*E23 -> 25.65 | G24: =G10*F23 -> 25.8525 | H24: =H10*G23 -> 22.065125 | I24: =I10*H23 -> 8.08838125
C26: Cash flow statement
C27: EBIT | E27: =E8 -> -10 | F27: =F8 -> 20 | G27: =G8 -> 100 | H27: =H8 -> 300 | I27: =I8 -> 300
C28: Less interest expense | E28: =E24 -> 25 | F28: =F24 -> 25.65 | G28: =G24 -> 25.8525 | H28: =H24 -> 22.065125 | I28: =I24 -> 8.08838125
C29: Add Interest income | E29: =E21 -> 2 | F29: =F21 -> 1.6 | G29: =G21 -> 1.6 | H29: =H21 -> 1.6 | I29: =I21 -> 1.6
C30: Net cash flow/extra cash | E30: =E27-E28+E29 -> -33 | F30: =F27-F28+F29 -> -4.05 | G30: =G27-G28+G29 -> 75.7475 | H30: =H27-H28+H29 -> 279.534875 | I30: =I27-I28+I29 -> 293.5116188
C32: Equity | D32: =D6 -> 300 | E32: =D32+E30 -> 267 | F32: =E32+F30 -> 262.95 | G32: =F32+G30 -> 338.6975 | H32: =G32+H30 -> 618.232375 | I32: =H32+I30 -> 911.7439938
C34: Asset | D34: =$D$2 -> 700 | E34: 700 | F34: 700 | G34: 700 | H34: 700 | I34: 700
B35: 1 | C35: Cash | D35: =D20 -> 100 | E35: 80 | F35: 80 | G35: 80 | H35: 80 | I35: 211.7439938
D36: =D34+D35 -> 800 | E36: 780 | F36: 780 | G36: 780 | H36: 780 | I36: 911.7439938
B38: -1 | C38: Debt | D38: =D23 -> 500 | E38: 513 | F38: 517.05 | G38: 441.3025 | H38: 161.767625 | I38: 0
C39: Equity | D39: =D32 -> 300 | E39: 267 | F39: 262.95 | G39: 338.6975 | H39: 618.232375 | I39: 911.7439938
D40: =D38+D39 -> 800 | E40: 780 | F40: 780 | G40: 780 | H40: 780 | I40: 911.7439938
C43: Net cash balance | D43: =SUMPRODUCT(D34:D40,$B$34:$B$40) -> -400 | E43: -433 | F43: -437.05 | G43: -361.3025 | H43: -81.767625 | I43: 211.7439938

Sheet Cap Exp
W9: 5.329214035
W10: 3.1316

Sheet Fixed and Variable Admin Cost
F3: Sales | G3: Admin
F4: =TRANSPOSE('Mongolia Mining Corporate Model'!I11:M11) -> 66982.70312 | G4: =TRANSPOSE('Mongolia Mining Corporate Model'!I153:M153) -> 10427.09277
F5: 277501.5938 | G5: 38685.20703
F6: 542568 | G6: 60303
F7: 474480 | G7: 48183
F8: 437339 | G8: 52410
